Workbook

Sheet Result NAAC
B1: SHRI SHIV CHARAN MATHUR, GOVERNMENT COLLEGE, MANDALGARH | R1: 0 | S1: D
B2: Assessment Matrix for Annual Auditing Programe | R2: 1.5 | S2: D
B3: Session : 2019-20 | R3: 1.5001 | S3: C
B4: Performance Criteria | C4: Weights | D4: Criteria-wise Grade Points | E4: Criteria-wise Grade Points Averages | F4: Crietria-wise Grade | J4: Delete Input Values | R4: 2 | S4: C
B5: =+Input!A7 -> A. Teaching and Learning | C5: =SUM(Input!I7:I37) -> 35.00 | D5: =SUM('Result KeyFactorwise'!D5:D9) -> 49.50 | E5: =IF(C5="","",ROUND(D5/C5,3)) -> 1.4140 | F5: =IF(E5=0,"D",VLOOKUP(E5,$R$1:$S$16,2)) -> D | J5: A | R5: 2.001 | S5: B
B6: =+Input!A38 -> B. Research and Professional Practices | C6: =SUM(Input!I38:I50) -> 15.00 | D6: =SUM('Result KeyFactorwise'!D10:D11) -> 0.00 | E6: =IF(C6="","",ROUND(D6/C6,3)) -> 0.0000 | F6: D | J6: B | R6: 2.5 | S6: B
B7: =+Input!A51 -> C. Infrastructure and Learning Resources | C7: =SUM(Input!I51:I74) -> 15.00 | D7: =SUM('Result KeyFactorwise'!D12:D13) -> 43.50 | E7: 2.9000 | F7: B++ | J7: C | R7: 2.5001 | S7: B+
B8: =+Input!A75 -> D. Student Support and participation | C8: =SUM(Input!I75:I107) -> 10.00 | D8: =SUM('Result KeyFactorwise'!D14:D15) -> 17.25 | E8: 1.7250 | F8: C | J8: D | R8: 2.75 | S8: B+
B9: =+Input!A108 -> E. Financial Resources and Utilisation | C9: =SUM(Input!I108:I112) -> 10.00 | D9: =SUM('Result KeyFactorwise'!D16:D17) -> 10.00 | E9: 1.0000 | F9: D | J9: E | R9: 2.7501 | S9: B++
B10: =+Input!A113 -> F. Commitment, Leadership and Management | C10: =SUM(Input!I113:I137) -> 15.00 | D10: =SUM('Result KeyFactorwise'!D18:D21) -> 29.00 | E10: 1.9330 | F10: C | J10: F | R10: 3 | S10: B++
B11: TOTAL | C11: =IF(SUM(C5:C10)=0,"",SUM(C5:C10)) -> 100.00 | D11: =IF(SUM(D5:D10)=0,"",SUM(D5:D10)) -> 149.25 | E11: =IF(SUM(E5:E10)=0,"",SUM(E5:E10)) -> 8.9720 | R11: 3.001 | S11: A
R12: 3.25 | S12: A
B13: =IF(D13="","","Institutional CGPA & GRADE") -> Institutional CGPA & GRADE | D13: =IF(E11="","",ROUND(D11/C11,4)) -> 1.49 | E13: =IF(D13="","",VLOOKUP(D13,R1:S16,2)) -> D | R13: 3.2501 | S13: A+
R14: 3.5 | S14: A+
R15: 3.501 | S15: A++
R16: 4 | S16: A++

Sheet Result KeyFactorwise NAAC
A1: =+Result!B1 -> SHRI SHIV CHARAN MATHUR, GOVERNMENT COLLEGE, MANDALGARH | R1: 0 | S1: D
A2: Assessment Matrix for Annual Auditing Programe | R2: 1.5 | S2: D
A3: =+Result!B3 -> Session : 2019-20 | R3: 1.5001 | S3: C
A4: Crteria | B4: Key Factors Criteria | C4: Weights | D4: Criteria-wise Grade Points | E4: Criteria-wise Grade Points Averages | F4: Crietria-wise Grade | G4: Delete Input Values Key Factor | R4: 2 | S4: C
A5: A. Teaching and Learning | B5: A-1 Student Strength | C5: =SUM(Input!I7:I8) -> 5.50 | D5: =Input!BG8 -> 0.00 | E5: =IF(C5="","",ROUND(D5/C5,3)) -> 0.0000 | F5: =IF(E5=0,"D",VLOOKUP(E5,$R$1:$S$16,2)) -> D | R5: 2.001 | S5: B
B6: A-2 Inclusivity | C6: =SUM(Input!I9:I19) -> 9.00 | D6: =Input!BG19 -> 25.50 | E6: =IF(C6="","",ROUND(D6/C6,3)) -> 2.8330 | F6: B++ | R6: 2.5 | S6: B
B7: A-3 Choices | C7: =SUM(Input!I20:I25) -> 5.50 | D7: =Input!BG25 -> 10.50 | E7: =IF(C7="","",ROUND(D7/C7,3)) -> 1.9090 | F7: C | R7: 2.5001 | S7: B+
B8: A-4 Faculty-Portrayal | C8: =SUM(Input!I26:I34) -> 9.00 | D8: =Input!BG34 -> 13.50 | E8: =IF(C8="","",ROUND(D8/C8,3)) -> 1.5000 | F8: D | R8: 2.75 | S8: B+
B9: A-5 Student performance and learning outcomes | C9: =SUM(Input!I35:I37) -> 6.00 | D9: =Input!BG37 -> 0.00 | E9: =IF(C9="","",ROUND(D9/C9,3)) -> 0.0000 | F9: D | R9: 2.7501 | S9: B++
A10: B. Research and Professional Practices | B10: B-1 Research Output | C10: =SUM(Input!I38:I47) -> 12.00 | D10: =Input!BG47 -> 0.00 | E10: =IF(C10="","",ROUND(D10/C10,3)) -> 0.0000 | F10: D | R10: 3 | S10: B++
B11: B-2 Academic Enrichment | C11: =SUM(Input!I48:I50) -> 3.00 | D11: =Input!BG50 -> 0.00 | E11: 0.0000 | F11: D | R11: 3.001 | S11: A
A12: C. Infrastructure and Learning Resources | B12: C-1 Physical Assets | C12: =SUM(Input!I51:I71) -> 12.50 | D12: =Input!BG71 -> 39.50 | E12: 3.1600 | F12: A | G12: C | R12: 3.25 | S12: A
B13: C-2 Office Setup | C13: =SUM(Input!I72:I74) -> 2.50 | D13: =Input!BG74 -> 4.00 | E13: 1.6000 | F13: C | R13: 3.2501 | S13: A+
A14: D. Student Support and participation | B14: D-1 Learning Support | C14: =SUM(Input!I75:I84) -> 3.50 | D14: =Input!BG84 -> 4.00 | E14: 1.1430 | F14: D | G14: D | R14: 3.5 | S14: A+
B15: D-2 Counseling and Mentoring | C15: =SUM(Input!I85:I107) -> 6.50 | D15: =Input!BG107 -> 13.25 | E15: 2.0380 | F15: B | R15: 3.501 | S15: A++
A16: E. Financial Resources and Utilisation | B16: E-1 Financial Management | C16: =SUM(Input!I108:I111) -> 8.00 | D16: =Input!BG111 -> 10.00 | E16: 1.2500 | F16: D | R16: 4 | S16: A++
B17: E-2 Self Financing Efforts | C17: =SUM(Input!I112) -> 2.00 | D17: =Input!BG112 -> 0.00 | E17: 0.0000 | F17: D
A18: F. Commitment, Leadership and Management | B18: F-1 Societal Footprint | C18: =SUM(Input!I113:I115) -> 1.50 | D18: =Input!BG115 -> 1.00 | E18: 0.6670 | F18: D
B19: F-2 Innovatin, Values and Best practices | C19: =SUM(Input!I116:I123) -> 4.50 | D19: =Input!BG123 -> 9.00 | E19: 2.0000 | F19: C
B20: F-3 Effective Implementatin of Govt. Schemes | C20: =SUM(Input!I124:I131) -> 6.00 | D20: =Input!BG131 -> 15.00 | E20: 2.5000 | F20: B
B21: F-4 Strengthening the bond | C21: =SUM(Input!I132:I137) -> 3.00 | D21: =Input!BG137 -> 4.00 | E21: 1.3330 | F21: D
B22: TOTAL | C22: =IF(SUM(C5:C21)=0,"",SUM(C5:C21)) -> 100.00 | D22: =IF(SUM(D5:D21)=0,"",SUM(D5:D21)) -> 149.25
B23: Average | C23: =IF(C22="","",ROUND(C22/4,2)) -> 25.00 | D23: =IF(D22="","",ROUND(D22/4,4)) -> 37.31

Sheet Input
A1: =+'Result NAAC'!B1 -> SHRI SHIV CHARAN MATHUR, GOVERNMENT COLLEGE, MANDALGARH | AA1: PRADEEP MODI
A2: =+'Result NAAC'!B2 -> Assessment Matrix for Annual Auditing Programe | AA2: 9413307717
A3: =+'Result NAAC'!B3 -> Session : 2019-20 | AA3: pradeepjimodi@gmail.com
A4: Detailed Report
A5: Crtieria | B5: Key Indicators | C5: S. No. | D5: Parameters | E5: Input Values | G5: Percentage or Ratio points | H5: Credits | I5: Weightage | J5: Weighted Credits | K5: 0 | L5: 1 | M5: 2 | N5: 3 | O5: 4 | P5: Credits | AA5: Documental Proof Available ? | AC5: Space for Notes for Future Reference | AW5: Error Message
P6: 0 | R6: 1 | T6: 2 | V6: 3 | X6: 4 | BB6: =SUM(BB7:BB137) -> 524 | BC6: 100 | BD6: 400 | BE6: 149.25 | BF6: 400 | BG6: 149.25
A7: A. Teaching and Learning | B7: A-1 Student Strength | C7: 1 | D7: Actual Student Strength as percentage of Sanctioned Strength | E7: 84.66 | G7: =IF(E7="","",ROUND(E7/F7,4)) ->  | H7: =IF(OR(E7="",F7="",F7=0),"",SUM(K7:O7)) ->  | I7: 3.00 | J7: =IF(H7="","",+H7*I7*Z7) ->  | K7: =IF($G7<$R7%,$K$5,"") ->  | L7: =IF(AND($G7<$T7%,$G7>$Q7%),$L$5,"") ->  | M7: =IF(AND($G7<$V7%,$G7>$S7%),$M$5,"") ->  | N7: =IF(AND($G7<$X7%,$G7>$U7%),$N$5,"") ->  | O7: =IF(AND($G7<Y7%,G7>W7%),$O$5,"") ->  | P7: 0 | Q7: 19.999 | R7: 20 | S7: 39.999 | T7: 40 | U7: 59.999 | V7: 60 | W7: 79.999 | X7: 80 | Y7: 10000 | Z7: =IF(AA7="YES",1,0)*IF(AW7="ERROR INPUT",0,1) -> 0 | AA7: YES | AW7: =IF(E7>F7,"ERROR INPUT","") -> ERROR INPUT | BB7: 4 | BC7: =+I7 -> 3.00 | BD7: =+BB7*BC7 -> 12 | BE7: =IF(J7="",0,+J7) -> 0.00
C8: =1+C7 -> 2 | D8: No. of Applications received as the ratio of Sanctioned seats in UG Part-I and PG (Prev. ) | E8: 1.56 | G8: =IF(E8="","",ROUND(E8/F8,4)) ->  | H8: =IF(OR(E8="",F8="",F8=0),"",SUM(K8:O8)) ->  | I8: 2.50 | J8: =IF(H8="","",+H8*I8*Z8) ->  | K8: =IF($G8<$R8,$K$5,"") ->  | L8: =IF(AND($G8<$T8,$G8>$Q8),$L$5,"") ->  | M8: =IF(AND($G8<$V8,$G8>$S8),$M$5,"") ->  | N8: =IF(AND($G8<$X8,$G8>$U8),$N$5,"") ->  | O8: =IF(AND($G8<Y8,G8>W8),$O$5,"") ->  | P8: 0 | Q8: 0.1999 | R8: 0.2 | S8: 0.9999 | T8: 1 | U8: 1.4999 | V8: 1.5 | W8: 1.9999 | X8: 2 | Y8: 10000 | Z8: =IF(AA8="YES",1,0)*IF(AW8="ERROR INPUT",0,1) -> 1 | AA8: YES | BB8: 4 | BC8: =+I8 -> 2.50 | BD8: =+BB8*BC8 -> 10 | BE8: =IF(J8="",0,+J8) -> 0.00 | BF8: =+BD8+BD7 -> 22 | BG8: =+BE8+BE7 -> 0
B9: A-2 Inclusivity | C9: =1+C8 -> 3 | D9: Percentage of Girls in case of (a) Co Ed. College | E9: 53.78 | F9: =+$E$7 -> 84.66 | G9: =IF(E9="","",ROUND(E9/F9,4)) -> 0.6352 | H9: =IF(OR(E9="",F9="",F9=0),"",IF(E10="yes",0,SUM(K9:O9))) -> 4 | I9: 1.50 | J9: =IF(H9="","",+H9*I9*Z9) -> 6.00 | K9: =IF($G9<$R9%,$K$5,"") ->  | L9: =IF(AND($G9<$T9%,$G9>$Q9%),$L$5,"") ->  | M9: =IF(AND($G9<$V9%,$G9>$S9%),$M$5,"") ->  | N9: =IF(AND($G9<$X9%,$G9>$U9%),$N$5,"") ->  | O9: =IF(AND($G9<Y9%,G9>W9%),$O$5,"") -> 4 | P9: 0 | Q9: 9.999 | R9: 10 | S9: 1900-01-19T23:58:33.600 | T9: 20 | U9: 29.999 | V9: 30 | W9: 49.999 | X9: 50 | Y9: 10000 | Z9: 1 | AA9: YES | AW9: =IF(E9>F9,"ERROR INPUT","") ->  | BB9: 4 | BC9: 1.50 | BD9: 6 | BE9: 6.00
D10: Percentage of Girls in case of (b) Girls College | E10: NO | G10: =+E10 -> NO | H10: =IF(H7="","",IF(G10="",0,SUM(K10:O10))) ->  | J10: =IF(H10="","",+H10*I9*Z10) ->  | K10: =IF(OR(E10="",E10="NO"),$K$5,"") -> 0 | O10: =IF(E10="YES",$O$5,"") ->  | Z10: 1 | AA10: YES | BB10: 4 | BC10: 0.00 | BD10: 0 | BE10: 0.00
C11: =1+C9 -> 4 | D11: Percentage of SC | E11: 23.62 | F11: =+$E$7 -> 84.66 | G11: =IF(E11="","",ROUND(E11/F11,4)) -> 27.9000% | H11: =IF(OR(E11="",F11="",F11=0),"",SUM(K11:O11)) -> 3 | I11: 1.00 | J11: =IF(H11="","",+H11*I11*Z11) -> 3.00 | K11: =IF($G11<$R11%,$K$5,"") ->  | N11: 3 | O11: =IF(AND($G11<Y11%,G11>W11%),$O$5,"") ->  | P11: 0 | Q11: 0 | R11: 0.0009 | S11: 9.9999 | T11: 10 | U11: 19.999 | V11: 20 | W11: 29.999 | X11: 30 | Y11: 10000 | Z11: 1 | AA11: YES | AW11: =IF(E11>F11,"ERROR INPUT","") ->  | BB11: 4 | BC11: 1.00 | BD11: 4 | BE11: 3.00
C12: 5 | D12: Percentage of ST | E12: 8.97 | F12: 84.66 | G12: 10.6000% | H12: 2 | I12: 1.00 | J12: 2.00 | M12: 2 | P12: 0 | Q12: 0 | R12: 0.0009 | S12: 9.9999 | T12: 10 | U12: 19.999 | V12: 20 | W12: 29.999 | X12: 30 | Y12: 10000 | Z12: 1 | AA12: =IF(+$AA$11<>"",+$AA$11,"") -> YES | BB12: 4 | BC12: 1.00 | BD12: 4 | BE12: 2.00
C13: 6 | D13: Percentage of OBC | E13: 44.25 | F13: 84.66 | G13: 52.2700% | H13: 4 | I13: 1.00 | J13: 4.00 | O13: 4 | P13: 0 | Q13: 0 | R13: 0.0009 | S13: 14.999 | T13: 15 | U13: 29.999 | V13: 30 | W13: 44.999 | X13: 45 | Y13: 10000 | Z13: 1 | AA13: YES | BB13: 4 | BC13: 1.00 | BD13: 4 | BE13: 4.00
C14: 7 | D14: Percentage of MBC | E14: 6.3 | F14: 84.66 | G14: 7.4400% | H14: 4 | I14: 1.00 | J14: 4.00 | O14: 4 | P14: 0 | Q14: 0 | R14: 0.0009 | S14: 1.999 | T14: 2 | U14: 3.999 | V14: 4 | W14: 5.999 | X14: 6 | Y14: 10000 | Z14: 1 | AA14: YES | BB14: 4 | BC14: 1.00 | BD14: 4 | BE14: 4.00
C15: 8 | D15: Percentage of EWS | E15: 0.63 | F15: 84.66 | G15: 0.7400% | H15: 1 | I15: 1.00 | J15: 1.00 | L15: 1 | P15: 0 | Q15: 0 | R15: 0.0009 | S15: 1.999 | T15: 2 | U15: 3.999 | V15: 4 | W15: 5.999 | X15: 6 | Y15: 10000 | Z15: 1 | AA15: YES | BB15: 4 | BC15: 1.00 | BD15: 4 | BE15: 1.00
C16: 9 | D16: Percentage of Minorities | E16: 2.5 | F16: 84.66 | G16: 2.9500% | H16: 3 | I16: 1.00 | J16: 3.00 | N16: 3 | P16: 0 | Q16: 0 | R16: 0.0009 | S16: 0.999 | T16: 1 | U16: 1.999 | V16: 2 | W16: 2.999 | X16: 3 | Y16: 10000 | Z16: 1 | AA16: YES | BB16: 4 | BC16: 1.00 | BD16: 4 | BE16: 3.00
C17: 10 | D17: Percentage of Students from other districts | E17: 3 | F17: 84.66 | G17: 3.5400% | H17: 2 | I17: 0.50 | J17: 1.00 | M17: 2 | P17: 0 | Q17: 0 | R17: 0.0009 | S17: 1.999 | T17: 2 | U17: 3.999 | V17: 4 | W17: 5.999 | X17: 6 | Y17: 10000 | Z17: 1 | AA17: YES | BB17: 4 | BC17: 0.50 | BD17: 2 | BE17: 1.00
A18: A. Teaching and Learning | B18: A-2 Inclusivity | C18: 11 | D18: Percentage of BPL Students | E18: 18 | F18: 84.66 | G18: 21.2600% | H18: 3 | I18: 0.50 | J18: 1.50 | N18: 3 | P18: 0 | Q18: 0 | R18: 0.0009 | S18: 9.9999 | T18: 10 | U18: 19.999 | V18: 20 | W18: 29.999 | X18: 30 | Y18: 10000 | Z18: 1 | AA18: YES | BB18: 4 | BC18: 0.50 | BD18: 2 | BE18: 1.50
C19: 12 | D19: Percentage of students with Special abilities | E19: 0.002 | F19: 84.66 | G19: 0.0000% | H19: 0 | I19: 0.50 | J19: 0.00 | K19: 0 | P19: 0 | Q19: 0 | R19: 0.0009 | S19: 0.099 | T19: 0.1 | U19: 0.1999 | V19: 0.2 | W19: 0.2999 | X19: 0.3 | Y19: 10000 | Z19: 1 | AA19: YES | BB19: 4 | BC19: 0.50 | BD19: 2 | BE19: 0.00 | BF19: =SUM(BD9:BD19) -> 36.00 | BG19: =SUM(BE9:BE19) -> 25.50
B20: A-3 Choices | C20: 13 | D20: No. of Faculties (Arts, Science, Commerce etc.) | E20: 2 | G20: =+E20 -> 2 | H20: =IF(E20="","",SUM(K20:O20)) -> 2 | I20: 1.00 | J20: 2.00 | K20: =IF($E20<$R20,$K$5,"") ->  | L20: =IF(AND($E20<$T20,$E20>$Q20),$L$5,"") ->  | M20: =IF(AND($E20<$V20,$E20>$S20),$M$5,"") -> 2 | N20: =IF(AND($E20<$X20,$E20>$U20),$N$5,"") ->  | O20: =IF(AND($E20<Y20,E20>W20),$O$5,"") ->  | P20: 0 | Q20: 0.999 | R20: 1 | S20: 1.999 | T20: 2 | U20: 2.999 | V20: 3 | W20: 3.999 | X20: 4 | Y20: 10000 | Z20: 1 | AA20: YES | BB20: 4 | BC20: 1.00 | BD20: 4 | BE20: 2.00
C21: 14 | D21: No. of Subjects offered at UG Courses | E21: 7 | G21: =+E21 -> 7 | H21: =IF(E21="","",SUM(K21:O21)) -> 2 | I21: 1.50 | J21: 3.00 | K21: =IF($E21<$R21,$K$5,"") ->  | L21: =IF(AND($E21<$T21,$E21>$Q21),$L$5,"") ->  | M21: =IF(AND($E21<$V21,$E21>$S21),$M$5,"") -> 2 | N21: =IF(AND($E21<$X21,$E21>$U21),$N$5,"") ->  | O21: =IF(AND($E21<Y21,E21>W21),$O$5,"") ->  | P21: 0 | Q21: 2.999 | R21: 3 | S21: 5.999 | T21: 6 | U21: 8.999 | V21: 9 | W21: 12.999 | X21: 13 | Y21: 10000 | Z21: 1 | AA21: =IF(+$AA$20<>"",+$AA$20,"") -> YES | BB21: 4 | BC21: 1.50 | BD21: 6 | BE21: 3.00
C22: 15 | D22: No. of PG Courses offered | E22: 3 | G22: =+E22 -> 3 | H22: 1 | I22: 0.50 | J22: 0.50 | K22: =IF($E22<$R22,$K$5,"") ->  | L22: =IF(AND($E22<$T22,$E22>$Q22),$L$5,"") -> 1 | M22: =IF(AND($E22<$V22,$E22>$S22),$M$5,"") ->  | N22: =IF(AND($E22<$X22,$E22>$U22),$N$5,"") ->  | O22: =IF(AND($E22<Y22,E22>W22),$O$5,"") ->  | P22: 0 | Q22: 0.999 | R22: 1 | S22: 3.999 | T22: 4 | U22: 6.999 | V22: 7 | W22: 9.999 | X22: 10 | Y22: 10000 | Z22: 1 | AA22: =IF(+$AA$20<>"",+$AA$20,"") -> YES | BB22: 4 | BC22: 0.50 | BD22: 2 | BE22: 0.50
C23: 16 | D23: No. of Vocational / skill Courses offered | E23: 2 | G23: =+E23 -> 2 | H23: 1 | I23: 0.50 | J23: 0.50 | K23: =IF($E23<$R23,$K$5,"") ->  | L23: =IF(AND($E23<$T23,$E23>$Q23),$L$5,"") -> 1 | M23: =IF(AND($E23<$V23,$E23>$S23),$M$5,"") ->  | N23: =IF(AND($E23<$X23,$E23>$U23),$N$5,"") ->  | O23: =IF(AND($E23<Y23,E23>W23),$O$5,"") ->  | P23: 0 | Q23: 0.999 | R23: 1 | S23: 5.999 | T23: 6 | U23: 10.999 | V23: 11 | W23: 15.999 | X23: 16 | Y23: 10000 | Z23: 1 | AA23: YES | BB23: 4 | BC23: 0.50 | BD23: 2 | BE23: 0.50
C24: 17 | D24: Percentage of students enrolled in vocational courses | E24: 0 | F24: =+$E$7 -> 84.66 | G24: =IF(E24="","",ROUND(E24/F24,4)) -> 0.0000% | H24: =IF(OR(E24="",F24="",F24=0),"",SUM(K24:O24)) -> 0 | I24: 0.50 | J24: 0.00 | K24: =IF($G24<$R24%,$K$5,"") -> 0 | L24: =IF(AND($G24<$T24%,$G24>$Q24%),$L$5,"") ->  | M24: =IF(AND($G24<$V24%,$G24>$S24%),$M$5,"") ->  | N24: =IF(AND($G24<$X24%,$G24>$U24%),$N$5,"") ->  | O24: =IF(AND($G24<Y24%,G24>W24%),$O$5,"") ->  | P24: 0 | Q24: 0.999 | R24: 1 | S24: 2.999 | T24: 3 | U24: 5.999 | V24: 6 | W24: 9.999 | X24: 10 | Y24: 10000 | Z24: 1 | AA24: YES | AW24: =IF(E24>F24,"ERROR INPUT","") ->  | BB24: 4 | BC24: 0.50 | BD24: 2 | BE24: 0.00
C25: 18 | D25: Percentage of Students enrolled in Skill Development Courses (RSLDC and Other agencies) | E25: 5.5 | F25: 84.66 | G25: 6.5000% | H25: 3 | I25: 1.50 | J25: 4.50 | N25: 3 | P25: 0 | Q25: 0.999 | R25: 1 | S25: 2.999 | T25: 3 | U25: 5.999 | V25: 6 | W25: 9.999 | X25: 10 | Y25: 10000 | Z25: 1 | AA25: YES | BB25: 4 | BC25: 1.50 | BD25: 6 | BE25: 4.50 | BF25: =SUM(BD20:BD25) -> 22 | BG25: =SUM(BE20:BE25) -> 10.5
B26: A-4 Faculty-Portrayal | C26: 19 | D26: Working faculty (including work arrangement, guest faculty, adhoc) as percentage of sanctioned posts | E26: 5 | F26: 20 | G26: 25.0000% | H26: 1 | I26: 1.50 | J26: 1.50 | K26: =IF($G26<$R26%,$K$5,"") ->  | L26: =IF(AND($G26<$T26%,$G26>$Q26%),$L$5,"") -> 1 | M26: =IF(AND($G26<$V26%,$G26>$S26%),$M$5,"") ->  | N26: =IF(AND($G26<$X26%,$G26>$U26%),$N$5,"") ->  | O26: =IF(AND($G26<Y26%,G26>W26%),$O$5,"") ->  | P26: 0 | Q26: 19.999 | R26: 20 | S26: 39.999 | T26: 40 | U26: 59.999 | V26: 60 | W26: 79.999 | X26: 80 | Y26: 10000 | Z26: 1 | AA26: YES | BB26: 4 | BC26: 1.50 | BD26: 6 | BE26: 1.50
C27: 20 | D27: Percentage of filled posts (regular appointments) against sanctioned posts | E27: 25 | F27: =+F26 -> 20 | G27: 125.0000% | H27: 4 | I27: 1.00 | J27: 0.00 | K27: =IF($G27<$R27%,$K$5,"") ->  | L27: =IF(AND($G27<$T27%,$G27>$Q27%),$L$5,"") ->  | M27: =IF(AND($G27<$V27%,$G27>$S27%),$M$5,"") ->  | N27: =IF(AND($G27<$X27%,$G27>$U27%),$N$5,"") ->  | O27: =IF(AND($G27<Y27%,G27>W27%),$O$5,"") -> 4 | P27: 0 | Q27: 19.999 | R27: 20 | S27: 39.999 | T27: 40 | U27: 59.999 | V27: 60 | W27: 79.999 | X27: 80 | Y27: 10000 | Z27: 0 | AA27: YES | AW27: ERROR INPUT | BB27: 4 | BC27: 1.00 | BD27: 4 | BE27: 0.00
A28: A. Teaching and Learning | B28: A-4 Faculty-Portrayal | C28: 21 | D28: Percentage of working faculty members having Ph.D Degree | E28: 0 | F28: =+$E$27 -> 25 | G28: 0.0000% | H28: 0 | I28: 1.50 | J28: 0.00 | K28: =IF($G28<$R28%,$K$5,"") -> 0 | L28: =IF(AND($G28<$T28%,$G28>$Q28%),$L$5,"") ->  | M28: =IF(AND($G28<$V28%,$G28>$S28%),$M$5,"") ->  | N28: =IF(AND($G28<$X28%,$G28>$U28%),$N$5,"") ->  | O28: =IF(AND($G28<Y28%,G28>W28%),$O$5,"") ->  | P28: 0 | Q28: 19.999 | R28: 20 | S28: 39.999 | T28: 40 | U28: 59.999 | V28: 60 | W28: 79.999 | X28: 80 | Y28: 10000 | Z28: 0 | BB28: 4 | BC28: 1.50 | BD28: 6 | BE28: 0.00
C29: 22 | D29: Percentage of working faculty members having M.Phil. Degree (other than Ph.D) | E29: 0 | F29: =+$E$27 -> 25 | G29: =IF(E29="","",ROUND(E29/F29,4)) -> 0.0000% | H29: 0 | I29: 0.50 | J29: 0.00 | K29: =IF($G29<$R29%,$K$5,"") -> 0 | L29: =IF(AND($G29<$T29%,$G29>$Q29%),$L$5,"") ->  | M29: =IF(AND($G29<$V29%,$G29>$S29%),$M$5,"") ->  | N29: =IF(AND($G29<$X29%,$G29>$U29%),$N$5,"") ->  | O29: =IF(AND($G29<Y29%,G29>W29%),$O$5,"") ->  | P29: 0 | Q29: 1.999 | R29: 2 | S29: 3.999 | T29: 4 | U29: 5.999 | V29: 6 | W29: 7.999 | X29: 8 | Y29: 10000 | Z29: 0 | BB29: 4 | BC29: 0.50 | BD29: 2 | BE29: 0.00
C30: 23 | D30: Percentage of working faculty members awarded PDF/D.Litt | E30: 0 | F30: =+$E$27 -> 25 | G30: 0.0000% | H30: 0 | I30: 0.50 | J30: 0.00 | K30: =IF($G30<$R30%,$K$5,"") -> 0 | L30: =IF(AND($G30<$T30%,$G30>$Q30%),$L$5,"") ->  | M30: =IF(AND($G30<$V30%,$G30>$S30%),$M$5,"") ->  | N30: =IF(AND($G30<$X30%,$G30>$U30%),$N$5,"") ->  | O30: =IF(AND($G30<Y30%,G30>W30%),$O$5,"") ->  | P30: 0 | Q30: 1.999 | R30: 2 | S30: 3.999 | T30: 4 | U30: 5.999 | V30: 6 | W30: 7.999 | X30: 8 | Y30: 10000 | Z30: 0 | BB30: 4 | BC30: 0.50 | BD30: 2 | BE30: 0.00
C31: 24 | D31: Student-Teacher ratio as per sanctioned posts | E31: =+$E$7 -> 84.66 | F31: =+F27 -> 20 | G31: =IF(E31="","",ROUND(E31/F31,4)) -> 4.2330 | H31: 4 | I31: 1.00 | J31: 4.00 | K31: =IF($G31>$R31,$K$5,"") ->  | L31: =IF(AND($G31>$T31,$G31<$Q31),$L$5,"") ->  | M31: =IF(AND($G31>$V31,$G31<$S31),$M$5,"") ->  | N31: =IF(AND($G31>$X31,$G31<$U31),$N$5,"") ->  | O31: =IF(AND($G31>Y31,G31<W31),$O$5,"") -> 4 | P31: 1000 | Q31: 100.0001 | R31: 100 | S31: 80.0001 | T31: 80 | U31: 60.0001 | V31: 60 | W31: 40.0001 | X31: 40 | Y31: 0.0001 | Z31: 1 | AA31: YES | BB31: 4 | BC31: 1.00 | BD31: 4 | BE31: 4.00
C32: 25 | D32: Student-Teacher ratio as per working teachers | E32: =+$E$7 -> 84.66 | F32: =+$E$26 -> 5 | G32: =IF(E32="","",ROUND(E32/F32,4)) -> 16.9320 | H32: 4 | I32: 1.00 | J32: 4.00 | K32: =IF($G32>$R32,$K$5,"") ->  | L32: =IF(AND($G32>$T32,$G32<$Q32),$L$5,"") ->  | M32: =IF(AND($G32>$V32,$G32<$S32),$M$5,"") ->  | N32: =IF(AND($G32>$X32,$G32<$U32),$N$5,"") ->  | O32: =IF(AND($G32>Y32,G32<W32),$O$5,"") -> 4 | P32: 1000 | Q32: 100.0001 | R32: 100 | S32: 80.0001 | T32: 80 | U32: 60.0001 | V32: 60 | W32: 40.0001 | X32: 40 | Y32: 0.0001 | Z32: 1 | AA32: YES | BB32: 4 | BC32: 1.00 | BD32: 4 | BE32: 4.00
C33: 26 | D33: Target of content-wise teaching achieved in percentage | E33: 80 | F33: 80 | G33: =IF(E33="","",ROUND(E33/F33,4)) -> 100.0000% | H33: 4 | I33: 1.00 | J33: 4.00 | K33: =IF($G33<$R33%,$K$5,"") ->  | L33: =IF(AND($G33<$T33%,$G33>$Q33%),$L$5,"") ->  | M33: =IF(AND($G33<$V33%,$G33>$S33%),$M$5,"") ->  | N33: =IF(AND($G33<$X33%,$G33>$U33%),$N$5,"") ->  | O33: =IF(AND($G33<Y33%,G33>W33%),$O$5,"") -> 4 | P33: 0 | Q33: 19.999 | R33: 20 | S33: 39.999 | T33: 40 | U33: 59.999 | V33: 60 | W33: 79.999 | X33: 80 | Y33: 10000 | Z33: 1 | AA33: YES | BB33: 4 | BC33: 1.00 | BD33: 4 | BE33: 4.00
C34: 27 | D34: Percentage of faculty members contributed to devlopment of E-content (which is being utilised in more than one institute) | E34: 0 | F34: =+$E$27 -> 25 | G34: =IF(E34="","",ROUND(E34/F34,4)) -> 0.0000% | H34: 0 | I34: 1.00 | J34: 0.00 | K34: 0 | P34: 0 | Q34: 19.999 | R34: 20 | S34: 39.999 | T34: 40 | U34: 59.999 | V34: 60 | W34: 79.999 | X34: 80 | Y34: 10000 | Z34: 0 | AA34: NO | AW34: =IF(E34>F34,"ERROR INPUT","") ->  | BB34: 4 | BC34: 1.00 | BD34: 4 | BE34: 0.00 | BF34: =SUM(BD26:BD34) -> 36.00 | BG34: =SUM(BE26:BE34) -> 13.50
B35: A-5 Student performance and learning outcomes | C35: 28 | D35: Pass percentage in last University result | E35: 91.06 | I35: 3.00 | P35: 0 | Q35: 19.999 | R35: 20 | S35: 39.999 | T35: 40 | U35: 59.999 | V35: 60 | W35: 79.999 | X35: 80 | Y35: 10000 | Z35: 0 | AA35: YES | AW35: =IF(E35>F35,"ERROR INPUT","") -> ERROR INPUT | BB35: 4 | BC35: 3.00 | BD35: 12 | BE35: 0.00
C36: 29 | D36: Percentage of Students scored 60% and above in University result | E36: 1.65 | F36: =+$F$35 -> 0 | I36: 2.00 | P36: 0 | Q36: 9.999 | R36: 10 | S36: 19.999 | T36: 20 | U36: 29.999 | V36: 30 | W36: 39.999 | X36: 40 | Y36: 10000 | Z36: 0 | AA36: =IF(+$AA$35<>"",+$AA$35,"") -> YES | AW36: =IF(E36>F36,"ERROR INPUT","") -> ERROR INPUT | BB36: 4 | BC36: 2.00 | BD36: 8 | BE36: 0.00
C37: 30 | D37: Percentage of Students scored 75% and above in University result | E37: 0 | F37: =+$F$35 -> 0 | I37: 1.00 | P37: 0 | Q37: 5e-05 | R37: 0.0001 | S37: 4.999 | T37: 5 | U37: 9.999 | V37: 10 | W37: 14.9999 | X37: 15 | Y37: 10000 | Z37: 1 | AA37: =IF(+$AA$35<>"",+$AA$35,"") -> YES | AW37: =IF(E37>F37,"ERROR INPUT","") ->  | BB37: 4 | BC37: 1.00 | BD37: 4 | BE37: 0.00 | BF37: =SUM(BD35:BD37) -> 24.00 | BG37: =SUM(BE35:BE37) -> 0.00
A38: B. Research and Professional Practices | B38: B-1 Research Output | C38: 31 | D38: Percentage of faculty members having 5 and more research papers published during last 3 years | E38: 40 | F38: =+$E$27 -> 25 | G38: =IF(E38="","",ROUND(E38/F38,4)) -> 160.0000% | H38: 4 | I38: 1.00 | J38: 0.00 | O38: 4 | P38: 0 | Q38: 5e-05 | R38: 0.0001 | S38: 1.9999 | T38: 2 | U38: 2.9999 | V38: 3 | W38: 3.9999 | X38: 4 | Y38: 10000 | Z38: 0 | AW38: =IF(E38>F38,"ERROR INPUT","") -> ERROR INPUT | BB38: 4 | BC38: 1.00 | BD38: 4 | BE38: 0.00
C39: 32 | D39: Percentage of faculty members authored/co-authored at least one book | E39: 0 | F39: 25 | G39: =IF(E39="","",ROUND(E39/F39,4)) -> 0.0000% | H39: 0 | I39: 1.00 | J39: 0.00 | K39: 0 | P39: 0 | Q39: 5e-05 | R39: 0.0001 | S39: 1.9999 | T39: 2 | U39: 2.9999 | V39: 3 | W39: 3.9999 | X39: 4 | Y39: 10000 | Z39: 0 | BB39: 4 | BC39: 1.00 | BD39: 4 | BE39: 0.00
C40: 33 | D40: Percentage of faculty members recognized as research supervisor | E40: 0 | F40: 25 | G40: 0.0000% | H40: 0 | I40: 1.50 | J40: 0.00 | K40: 0 | P40: 0 | Q40: 5e-05 | R40: 0.0001 | S40: 1.9999 | T40: 2 | U40: 2.9999 | V40: 3 | W40: 3.9999 | X40: 4 | Y40: 10000 | Z40: 0 | BB40: 4 | BC40: 1.50 | BD40: 6 | BE40: 0.00
C41: 34 | D41: Percentage of faculty members under whom at least one scholar is awarded Ph.D. | E41: 0 | F41: 25 | G41: 0.0000% | H41: 0 | I41: 1.00 | J41: 0.00 | K41: 0 | P41: 0 | Q41: 5e-05 | R41: 0.0001 | S41: 1.9999 | T41: 2 | U41: 2.9999 | V41: 3 | W41: 3.9999 | X41: 4 | Y41: 10000 | Z41: 0 | BB41: 4 | BC41: 1.00 | BD41: 4 | BE41: 0.00
C42: 35 | D42: Percentage of faculty members presented at least 2 papers in international seminars / conferences during last 3 years | E42: 40 | F42: 25 | G42: 160.0000% | H42: 4 | I42: 1.00 | J42: 0.00 | O42: 4 | P42: 0 | Q42: 5e-05 | R42: 0.0001 | S42: 9.9999 | T42: 10 | U42: 19.9999 | V42: 20 | W42: 29.9999 | X42: 30 | Y42: 10000 | Z42: 0 | AW42: ERROR INPUT | BB42: 4 | BC42: 1.00 | BD42: 4 | BE42: 0.00
C43: 36 | D43: Percentage faculty members presented at least 3 papers in national seminars / conferences during last 3 years | E43: 40 | F43: 25 | G43: =IF(E43="","",ROUND(E43/F43,4)) -> 160.0000% | H43: 4 | I43: 1.50 | J43: 0.00 | O43: 4 | P43: 0 | Q43: 5e-05 | R43: 0.0001 | S43: 19.9999 | T43: 20 | U43: 29.9999 | V43: 30 | W43: 39.9999 | X43: 40 | Y43: 10000 | Z43: 0 | AA43: YES | AW43: ERROR INPUT | BB43: 4 | BC43: 1.50 | BD43: 6 | BE43: 0.00
C44: 37 | D44: No. of International/National seminars / conferences/workshops organized in last 5 years | E44: 0 | G44: =+E44 -> 0 | H44: =IF(E44="","",SUM(K44:O44)) -> 0 | I44: 1.50 | J44: 0.00 | K44: =IF($E44<$R44,$K$5,"") -> 0 | L44: =IF(AND($E44<$T44,$E44>$Q44),$L$5,"") ->  | M44: =IF(AND($E44<$V44,$E44>$S44),$M$5,"") ->  | N44: =IF(AND($E44<$X44,$E44>$U44),$N$5,"") ->  | O44: =IF(AND($E44<Y44,E44>W44),$O$5,"") ->  | P44: 0 | Q44: 0.999 | R44: 1 | S44: 1.999 | T44: 2 | U44: 2.999 | V44: 3 | W44: 3.999 | X44: 4 | Y44: 10000 | Z44: 0 | BB44: 4 | BC44: 1.50 | BD44: 6 | BE44: 0.00
C45: 38 | D45: No. of faculty members who have acted as convener / Organizing secretary in national seminar / conferences in last 5 years | E45: 0 | G45: =+E45 -> 0 | H45: 0 | I45: 1.50 | J45: 0.00 | K45: =IF($E45<$R45,$K$5,"") -> 0 | L45: =IF(AND($E45<$T45,$E45>$Q45),$L$5,"") ->  | M45: =IF(AND($E45<$V45,$E45>$S45),$M$5,"") ->  | N45: =IF(AND($E45<$X45,$E45>$U45),$N$5,"") ->  | O45: =IF(AND($E45<Y45,E45>W45),$O$5,"") ->  | P45: 0 | Q45: 0.999 | R45: 1 | S45: 1.999 | T45: 2 | U45: 2.999 | V45: 3 | W45: 3.999 | X45: 4 | Y45: 10000 | Z45: 0 | BB45: 4 | BC45: 1.50 | BD45: 6 | BE45: 0.00
A46: B. Research and Professional Practices | B46: B-1 Research Output | C46: 39 | D46: Percentage of faculty members who have been awarded Research Projects from UGC, ICSSR and other research funding agency | E46: 0 | F46: =+$E$27 -> 25 | G46: =IF(E46="","",ROUND(E46/F46,4)) -> 0.0000% | H46: =IF(OR(E46="",F46="",F46=0),"",SUM(K46:O46)) -> 0 | I46: 1.00 | J46: 0.00 | K46: =IF($G46<$R46%,$K$5,"") -> 0 | L46: =IF(AND($G46<$T46%,$G46>$Q46%),$L$5,"") ->  | M46: =IF(AND($G46<$V46%,$G46>$S46%),$M$5,"") ->  | N46: =IF(AND($G46<$X46%,$G46>$U46%),$N$5,"") ->  | O46: =IF(AND($G46<Y46%,G46>W46%),$O$5,"") ->  | P46: 0 | Q46: 5e-05 | R46: 0.0001 | S46: 1.9999 | T46: 2 | U46: 4.9999 | V46: 5 | W46: 8.9999 | X46: 9 | Y46: 10000 | Z46: 0 | BB46: 4 | BC46: 1.00 | BD46: 4 | BE46: 0.00
C47: 40 | D47: No. of faculty members, who are associated with any foreign agency for research / referee assignments | E47: 0 | G47: =+E47 -> 0 | H47: =IF(E47="","",SUM(K47:O47)) -> 0 | I47: 1.00 | J47: 0.00 | K47: =IF($E47<$R47,$K$5,"") -> 0 | L47: =IF(AND($E47<$T47,$E47>$Q47),$L$5,"") ->  | M47: =IF(AND($E47<$V47,$E47>$S47),$M$5,"") ->  | N47: =IF(AND($E47<$X47,$E47>$U47),$N$5,"") ->  | O47: =IF(AND($E47<Y47,E47>W47),$O$5,"") ->  | P47: 0 | Q47: 0.999 | R47: 1 | S47: 1.999 | T47: 2 | U47: 2.999 | V47: 3 | W47: 3.999 | X47: 4 | Y47: 10000 | Z47: 0 | BB47: 4 | BC47: 1.00 | BD47: 4 | BE47: 0.00 | BF47: =SUM(BD38:BD47) -> 48.00 | BG47: =SUM(BE38:BE47) -> 0.00
B48: B-2 Academic Enrichment | C48: 41 | D48: Percentage of faculty members associated with academic associations | E48: 0 | F48: =+$E$27 -> 25 | G48: =IF(E48="","",ROUND(E48/F48,4)) -> 0.0000% | H48: =IF(OR(E48="",F48="",F48=0),"",SUM(K48:O48)) -> 0 | I48: 1.00 | J48: 0.00 | K48: =IF($G48<$R48%,$K$5,"") -> 0 | L48: =IF(AND($G48<$T48%,$G48>$Q48%),$L$5,"") ->  | M48: =IF(AND($G48<$V48%,$G48>$S48%),$M$5,"") ->  | N48: =IF(AND($G48<$X48%,$G48>$U48%),$N$5,"") ->  | O48: =IF(AND($G48<Y48%,G48>W48%),$O$5,"") ->  | P48: 0 | Q48: 5e-05 | R48: 0.0001 | S48: 19.9999 | T48: 20 | U48: 29.9999 | V48: 30 | W48: 39.9999 | X48: 40 | Y48: 10000 | Z48: 0 | BB48: 4 | BC48: 1.00 | BD48: 4 | BE48: 0.00
C49: 42 | D49: Percentage of faculty members who have attended international level academic events / programmes outside India (In last 5 years) | E49: 0 | F49: 25 | G49: 0.0000% | H49: 0 | I49: 1.00 | J49: 0.00 | K49: =IF($G49<$R49%,$K$5,"") -> 0 | L49: =IF(AND($G49<$T49%,$G49>$Q49%),$L$5,"") ->  | M49: =IF(AND($G49<$V49%,$G49>$S49%),$M$5,"") ->  | N49: =IF(AND($G49<$X49%,$G49>$U49%),$N$5,"") ->  | O49: =IF(AND($G49<Y49%,G49>W49%),$O$5,"") ->  | P49: 0 | Q49: 0 | R49: 0.0009 | S49: 0.999 | T49: 1 | U49: 1.999 | V49: 2 | W49: 2.999 | X49: 3 | Y49: 10000 | Z49: 0 | BB49: 4 | BC49: 1.00 | BD49: 4 | BE49: 0.00
C50: 43 | D50: Number of IPRs (Patents, Copyrights, Trade marks etc.) if any, in the name of faculty member of the college | E50: 0 | G50: =+E50 -> 0 | H50: =IF(E50="","",SUM(K50:O50)) -> 0 | I50: 1.00 | J50: 0.00 | K50: =IF($E50<$R50,$K$5,"") -> 0 | L50: =IF(AND($E50<$T50,$E50>$Q50),$L$5,"") ->  | M50: =IF(AND($E50<$V50,$E50>$S50),$M$5,"") ->  | N50: =IF(AND($E50<$X50,$E50>$U50),$N$5,"") ->  | O50: =IF(AND($E50<Y50,E50>W50),$O$5,"") ->  | P50: 0 | Q50: 0.999 | R50: 1 | S50: 1.999 | T50: 2 | U50: 2.999 | V50: 3 | W50: 3.999 | X50: 4 | Y50: 10000 | Z50: 0 | BB50: 4 | BC50: 1.00 | BD50: 4 | BE50: 0.00 | BF50: =SUM(BD48:BD50) -> 12.00 | BG50: =SUM(BE48:BE50) -> 0.00
A51: C. Infrastructure and Learning Resources | B51: C-1 Physical Assets | C51: 44 | D51: Whether the college has its own building | E51: YES | G51: =+E51 -> YES | H51: =IF(E51="","",SUM(K51:O51)) -> 4 | I51: 0.50 | J51: 2.00 | K51: =IF(OR(E51="",E51="NO"),$K$5,"") ->  | L51: =IF(AND($G51<$T51%,$G51>$Q51%),$L$5,"") ->  | M51: =IF(AND($G51<$V51%,$G51>$S51%),$M$5,"") ->  | N51: =IF(AND($G51<$X51%,$G51>$U51%),$N$5,"") ->  | O51: =IF(E51="YES",$O$5,"") -> 4 | Z51: 1 | AA51: YES | BB51: 4 | BC51: 0.50 | BD51: 2 | BE51: 2.00
C52: 45 | D52: Ratio of total students to No. of classrooms in the college | E52: =+$E$7 -> 84.66 | F52: 12 | G52: =IF(E52="","",ROUND(E52/F52,4)) -> 7.0550 | H52: =IF(OR(E52="",F52="",F52=0),"",SUM(K52:O52)) -> 4 | I52: 1.00 | J52: 4.00 | K52: =IF($G52>$R52,$K$5,"") ->  | L52: =IF(AND($G52>$T52,$G52<$Q52),$L$5,"") ->  | M52: =IF(AND($G52>$V52,$G52<$S52),$M$5,"") ->  | N52: =IF(AND($G52>$X52,$G52<$U52),$N$5,"") ->  | O52: =IF(AND($G52>Y52,G52<W52),$O$5,"") -> 4 | P52: 1000 | Q52: 150.0001 | R52: 150 | S52: 125.0001 | T52: 125 | U52: 100.0001 | V52: 100 | W52: 80.0001 | X52: 80 | Y52: 0.0001 | Z52: 1 | AA52: YES | BB52: 4 | BC52: 1.00 | BD52: 4 | BE52: 4.00
C53: 46 | D53: Ratio of students in practical subjects to the number of labs | E53: 858 | F53: 1 | G53: =IF(E53="","",ROUND(E53/F53,4)) -> 858.0000 | H53: 0 | I53: 0.50 | J53: 0.00 | K53: =IF($G53>$R53,$K$5,"") -> 0 | L53: =IF(AND($G53>$T53,$G53<$Q53),$L$5,"") ->  | M53: =IF(AND($G53>$V53,$G53<$S53),$M$5,"") ->  | N53: =IF(AND($G53>$X53,$G53<$U53),$N$5,"") ->  | O53: =IF(AND($G53>Y53,G53<W53),$O$5,"") ->  | P53: 1000 | Q53: 150.0001 | R53: 150 | S53: 120.0001 | T53: 120 | U53: 90.0001 | V53: 90 | W53: 60.0001 | X53: 60 | Y53: 0.0001 | Z53: 1 | AA53: YES | BB53: 4 | BC53: 0.50 | BD53: 2 | BE53: 0.00
C54: 47 | D54: Ratio of student furniture to the total number of class rooms | E54: 580 | F54: =+$F$52 -> 12 | G54: =IF(E54="","",ROUND(E54/F54,4)) -> 48.3333 | H54: 1 | I54: 1.00 | J54: 1.00 | K54: =IF($G54<$R54,$K$5,"") ->  | L54: =IF(AND($G54<$T54,$G54>$Q54),$L$5,"") -> 1 | M54: =IF(AND($G54<$V54,$G54>$S54),$M$5,"") ->  | N54: =IF(AND($G54<$X54,$G54>$U54),$N$5,"") ->  | O54: =IF(AND($G54<Y54,G54>W54),$O$5,"") ->  | P54: 0 | Q54: 19.9999 | R54: 20 | S54: 49.9999 | T54: 50 | U54: 69.9999 | V54: 70 | W54: 89.9999 | X54: 90 | Y54: 10000 | Z54: 1 | AA54: YES | BB54: 4 | BC54: 1.00 | BD54: 4 | BE54: 1.00
A55: C. Infrastructure and Learning Resources | B55: C-1 Physical Assets | C55: 48 | D55: Percentage of class rooms / labs equipped with working fans and tube lights / bulbs | E55: 13 | F55: =+$F$52+$F$53 -> 13 | G55: =IF(E55="","",ROUND(E55/F55,4)) -> 100.0000% | H55: 4 | I55: 0.50 | J55: 2.00 | K55: =IF($G55<$R55%,$K$5,"") ->  | L55: =IF(AND($G55<$T55%,$G55>$Q55%),$L$5,"") ->  | M55: =IF(AND($G55<$V55%,$G55>$S55%),$M$5,"") ->  | N55: =IF(AND($G55<$X55%,$G55>$U55%),$N$5,"") ->  | O55: =IF(AND($G55<Y55%,G55>W55%),$O$5,"") -> 4 | P55: 0 | Q55: 19.999 | R55: 20 | S55: 39.999 | T55: 40 | U55: 59.999 | V55: 60 | W55: 79.999 | X55: 80 | Y55: 10000 | Z55: 1 | AA55: YES | BB55: 4 | BC55: 0.50 | BD55: 2 | BE55: 2.00
C56: 49 | D56: Ratio of number of boys students to the No. of toilets | E56: =IF(E10="yes","",+E7-E9) -> 30.88 | F56: 18 | G56: =IF(E56="","",ROUND(E56/F56,4)) -> 1.7156 | H56: 4 | I56: 0.50 | J56: 2.00 | K56: =IF($G56>$R56,$K$5,"") ->  | L56: =IF(AND($G56>$T56,$G56<$Q56),$L$5,"") ->  | M56: =IF(AND($G56>$V56,$G56<$S56),$M$5,"") ->  | N56: =IF(AND($G56>$X56,$G56<$U56),$N$5,"") ->  | O56: =IF(AND($G56>Y56,G56<W56),$O$5,"") -> 4 | P56: 1000 | Q56: 150.0001 | R56: 150 | S56: 120.0001 | T56: 120 | U56: 90.0001 | V56: 90 | W56: 60.0001 | X56: 60 | Y56: 0.0001 | Z56: 1 | AA56: YES | BB56: 4 | BC56: 0.50 | BD56: 2 | BE56: 2.00
C57: 50 | D57: Ratio of number of girls students to the No. of toilets | E57: =IF(E56="",$E$7,+$E$7-E56) -> 53.78 | F57: 13 | G57: =IF(E57="","",ROUND(E57/F57,4)) -> 4.1369 | H57: 4 | I57: 0.50 | J57: 0.00 | K57: =IF($G57>$R57,$K$5,"") ->  | L57: =IF(AND($G57>$T57,$G57<$Q57),$L$5,"") ->  | M57: =IF(AND($G57>$V57,$G57<$S57),$M$5,"") ->  | N57: =IF(AND($G57>$X57,$G57<$U57),$N$5,"") ->  | O57: =IF(AND($G57>Y57,G57<W57),$O$5,"") -> 4 | P57: 1000 | Q57: 150.0001 | R57: 150 | S57: 120.0001 | T57: 120 | U57: 90.0001 | V57: 90 | W57: 60.0001 | X57: 60 | Y57: 0.0001 | Z57: 0 | AA57: YES | AW57: ERROR INPUT | BB57: 4 | BC57: 0.50 | BD57: 2 | BE57: 0.00
C58: 51 | D58: Girls common room facility | E58: YES | G58: =+E58 -> YES | H58: =IF(E58="","",SUM(K58:O58)) -> 4 | I58: 1.00 | J58: 4.00 | K58: =IF(OR(E58="",E58="NO"),$K$5,"") ->  | L58: =IF(AND($G58<$T58%,$G58>$Q58%),$L$5,"") ->  | M58: =IF(AND($G58<$V58%,$G58>$S58%),$M$5,"") ->  | N58: =IF(AND($G58<$X58%,$G58>$U58%),$N$5,"") ->  | O58: =IF(E58="YES",$O$5,"") -> 4 | Z58: 1 | AA58: YES | BB58: 4 | BC58: 1.00 | BD58: 4 | BE58: 4.00
C59: 52 | D59: Availability of Staff room | E59: YES | G59: =+E59 -> YES | H59: =IF(E59="","",SUM(K59:O59)) -> 4 | I59: 0.50 | J59: 2.00 | K59: =IF(OR(E59="",E59="NO"),$K$5,"") ->  | O59: =IF(E59="YES",$O$5,"") -> 4 | Z59: 1 | AA59: YES | BB59: 4 | BC59: 0.50 | BD59: 2 | BE59: 2.00
C60: 53 | D60: Department rooms in percentage to No. of subjects being taught in the college | E60: 2 | G60: =IF(E60="","",ROUND(E60/F60,4)) ->  | H60: =IF(OR(E60="",F60="",F60=0),"",SUM(K60:O60)) ->  | I60: 0.50 | K60: =IF($G60<$R60%,$K$5,"") ->  | L60: =IF(AND($G60<$T60%,$G60>$Q60%),$L$5,"") ->  | M60: =IF(AND($G60<$V60%,$G60>$S60%),$M$5,"") ->  | N60: =IF(AND($G60<$X60%,$G60>$U60%),$N$5,"") ->  | O60: =IF(AND($G60<Y60%,G60>W60%),$O$5,"") ->  | P60: 0 | Q60: 5e-05 | R60: 0.0001 | S60: 24.9999 | T60: 25 | U60: 49.9999 | V60: 50 | W60: 74.9999 | X60: 75 | Y60: 10000 | Z60: 0 | AA60: YES | AW60: ERROR INPUT | BB60: 4 | BC60: 0.50 | BD60: 2 | BE60: 0.00
C61: 54 | D61: Ratio of number of faculty members to the No. of toilets | E61: =+$E$26 -> 5 | F61: 3 | G61: =IF(E61="","",ROUND(E61/F61,4)) -> 1.6667 | H61: 4 | I61: 0.50 | J61: 2.00 | K61: =IF($G61>$R61,$K$5,"") ->  | L61: =IF(AND($G61>$T61,$G61<$Q61),$L$5,"") ->  | M61: =IF(AND($G61>$V61,$G61<$S61),$M$5,"") ->  | N61: =IF(AND($G61>$X61,$G61<$U61),$N$5,"") ->  | O61: =IF(AND($G61>Y61,G61<W61),$O$5,"") -> 4 | P61: 1000 | Q61: 80.0001 | R61: 80 | S61: 60.0001 | T61: 60 | U61: 40.0001 | V61: 40 | W61: 20.0001 | X61: 20 | Y61: 0.0001 | Z61: 1 | AA61: YES | BB61: 4 | BC61: 0.50 | BD61: 2 | BE61: 2.00
C62: 55 | D62: No. of computers in ICT labs | E62: 20 | G62: =+E62 -> 20 | H62: =IF(E62="","",SUM(K62:O62)) -> 3 | I62: 0.50 | J62: 1.50 | K62: =IF($E62<$R62,$K$5,"") ->  | L62: =IF(AND($E62<$T62,$E62>$Q62),$L$5,"") ->  | M62: =IF(AND($E62<$V62,$E62>$S62),$M$5,"") ->  | N62: =IF(AND($E62<$X62,$E62>$U62),$N$5,"") -> 3 | O62: =IF(AND($E62<Y62,E62>W62),$O$5,"") ->  | P62: 0 | Q62: 0.999 | R62: 1 | S62: 5.9999 | T62: 6 | U62: 10.9999 | V62: 11 | W62: 20.9999 | X62: 21 | Y62: 10000 | Z62: 1 | AA62: YES | BB62: 4 | BC62: 0.50 | BD62: 2 | BE62: 1.50
C63: 56 | D63: Availability of seminar / conference room in the college | E63: YES | G63: YES | H63: 4 | I63: 0.50 | J63: 2.00 | K63: =IF(OR(E63="",E63="NO"),$K$5,"") ->  | L63: =IF(AND($G63<$T63%,$G63>$Q63%),$L$5,"") ->  | M63: =IF(AND($G63<$V63%,$G63>$S63%),$M$5,"") ->  | N63: =IF(AND($G63<$X63%,$G63>$U63%),$N$5,"") ->  | O63: =IF(E63="YES",$O$5,"") -> 4 | Z63: 1 | AA63: YES | BB63: 4 | BC63: 0.50 | BD63: 2 | BE63: 2.00
C64: 57 | D64: Availability of Safe/Clean drinking water with functional RO system | E64: YES | G64: YES | H64: 4 | I64: 1.00 | J64: 4.00 | K64: =IF(OR(E64="",E64="NO"),$K$5,"") ->  | O64: =IF(E64="YES",$O$5,"") -> 4 | Z64: 1 | AA64: YES | BB64: 4 | BC64: 1.00 | BD64: 4 | BE64: 4.00
C65: 58 | D65: Water harvesting system/ provision in the college | E65: YES | G65: YES | H65: 4 | I65: 0.50 | J65: 2.00 | K65: =IF(OR(E65="",E65="NO"),$K$5,"") ->  | O65: =IF(E65="YES",$O$5,"") -> 4 | Z65: 1 | AA65: YES | BB65: 4 | BC65: 0.50 | BD65: 2 | BE65: 2.00
A66: C. Infrastructure and Learning Resources | B66: C-1 Physical Assets | C66: 59 | D66: Availibility of Language Lab | E66: YES | G66: YES | H66: 4 | I66: 0.50 | J66: 2.00 | K66: =IF(OR(E66="",E66="NO"),$K$5,"") ->  | O66: =IF(E66="YES",$O$5,"") -> 4 | Z66: 1 | AA66: YES | BB66: 4 | BC66: 0.50 | BD66: 2 | BE66: 2.00
C67: 60 | D67: Whether the campus is Wi-Fi enabled | E67: YES | G67: YES | H67: 4 | I67: 0.50 | J67: 2.00 | K67: =IF(OR(E67="",E67="NO"),$K$5,"") ->  | O67: =IF(E67="YES",$O$5,"") -> 4 | Z67: 1 | AA67: YES | BB67: 4 | BC67: 0.50 | BD67: 2 | BE67: 2.00
C68: 61 | D68: No. of smart classrooms | E68: 2 | G68: 2 | H68: 2 | I68: 0.50 | J68: 1.00 | K68: =IF($E68<$R68,$K$5,"") ->  | L68: =IF(AND($E68<$T68,$E68>$Q68),$L$5,"") ->  | M68: =IF(AND($E68<$V68,$E68>$S68),$M$5,"") -> 2 | N68: =IF(AND($E68<$X68,$E68>$U68),$N$5,"") ->  | O68: =IF(AND($E68<Y68,E68>W68),$O$5,"") ->  | P68: 0 | Q68: 0.999 | R68: 1 | S68: 1.9999 | T68: 2 | U68: 2.9999 | V68: 3 | W68: 3.9999 | X68: 4 | Y68: 10000 | Z68: 1 | AA68: YES | BB68: 4 | BC68: 0.50 | BD68: 2 | BE68: 1.00
C69: 62 | D69: Ramp and other facilities for physically challenged students | E69: YES | G69: YES | H69: 4 | I69: 0.50 | J69: 2.00 | K69: =IF(OR(E69="",E69="NO"),$K$5,"") ->  | L69: =IF(AND($G69<$T69%,$G69>$Q69%),$L$5,"") ->  | M69: =IF(AND($G69<$V69%,$G69>$S69%),$M$5,"") ->  | N69: =IF(AND($G69<$X69%,$G69>$U69%),$N$5,"") ->  | O69: =IF(E69="YES",$O$5,"") -> 4 | Z69: 1 | AA69: YES | BB69: 4 | BC69: 0.50 | BD69: 2 | BE69: 2.00
C70: 63 | D70: Percentage of capacity of power generation through Generator / inverter/Solar panel to total electricity requirement of the college | E70: 11 | F70: 5 | G70: =IF(E70="","",ROUND(E70/F70,4)) -> 220.0000% | H70: =IF(OR(E70="",F70="",F70=0),"",SUM(K70:O70)) -> 4 | I70: 0.50 | J70: 2.00 | K70: =IF($G70<$R70%,$K$5,"") ->  | L70: =IF(AND($G70<$T70%,$G70>$Q70%),$L$5,"") ->  | M70: =IF(AND($G70<$V70%,$G70>$S70%),$M$5,"") ->  | N70: =IF(AND($G70<$X70%,$G70>$U70%),$N$5,"") ->  | O70: =IF(AND($G70<Y70%,G70>W70%),$O$5,"") -> 4 | P70: 0 | Q70: 19.999 | R70: 20 | S70: 39.999 | T70: 40 | U70: 59.999 | V70: 60 | W70: 79.999 | X70: 80 | Y70: 10000 | Z70: 1 | AA70: YES | BB70: 4 | BC70: 0.50 | BD70: 2 | BE70: 2.00
C71: 64 | D71: Availability of Audio / video system in the college (Mic, TV, Projector, Laptops etc.) | E71: YES | G71: =+E71 -> YES | H71: =IF(E71="","",SUM(K71:O71)) -> 4 | I71: 0.50 | J71: 2.00 | K71: =IF(OR(E71="",E71="NO"),$K$5,"") ->  | L71: =IF(AND($G71<$T71%,$G71>$Q71%),$L$5,"") ->  | M71: =IF(AND($G71<$V71%,$G71>$S71%),$M$5,"") ->  | N71: =IF(AND($G71<$X71%,$G71>$U71%),$N$5,"") ->  | O71: =IF(E71="YES",$O$5,"") -> 4 | Z71: 1 | AA71: YES | BB71: 4 | BC71: 0.50 | BD71: 2 | BE71: 2.00 | BF71: =SUM(BD51:BD71) -> 50.00 | BG71: =SUM(BE51:BE71) -> 39.50
B72: C-2 Office Setup | C72: 65 | D72: Percentage of working Ministerial staff to no. of sanctioned posts (including Lab asstts.) | E72: 1 | F72: 4 | G72: =IF(E72="","",ROUND(E72/F72,4)) -> 25.0000% | H72: =IF(OR(E72="",F72="",F72=0),"",SUM(K72:O72)) -> 1 | I72: 1.00 | J72: 1.00 | K72: =IF($G72<$R72%,$K$5,"") ->  | L72: =IF(AND($G72<$T72%,$G72>$Q72%),$L$5,"") -> 1 | M72: =IF(AND($G72<$V72%,$G72>$S72%),$M$5,"") ->  | N72: =IF(AND($G72<$X72%,$G72>$U72%),$N$5,"") ->  | O72: =IF(AND($G72<Y72%,G72>W72%),$O$5,"") ->  | P72: 0 | Q72: 19.999 | R72: 20 | S72: 39.999 | T72: 40 | U72: 59.999 | V72: 60 | W72: 79.999 | X72: 80 | Y72: 10000 | Z72: =IF(AA72="YES",1,0)*IF(AW72="ERROR INPUT",0,1) -> 1 | AA72: YES | BB72: 4 | BC72: =+I72 -> 1.00 | BD72: =+BB72*BC72 -> 4 | BE72: =IF(J72="",0,+J72) -> 1.00
C73: 66 | D73: Percentage of working supporting staff to no. of sanctioned posts (including Lab bearers, gas man etc..) | E73: 2 | F73: 3 | G73: =IF(E73="","",ROUND(E73/F73,4)) -> 66.6700% | H73: 3 | I73: 1.00 | J73: 3.00 | K73: =IF($G73<$R73%,$K$5,"") ->  | L73: =IF(AND($G73<$T73%,$G73>$Q73%),$L$5,"") ->  | M73: =IF(AND($G73<$V73%,$G73>$S73%),$M$5,"") ->  | N73: =IF(AND($G73<$X73%,$G73>$U73%),$N$5,"") -> 3 | O73: =IF(AND($G73<Y73%,G73>W73%),$O$5,"") ->  | P73: 0 | Q73: 19.999 | R73: 20 | S73: 39.999 | T73: 40 | U73: 59.999 | V73: 60 | W73: 79.999 | X73: 80 | Y73: 10000 | Z73: 1 | AA73: YES | BB73: 4 | BC73: 1.00 | BD73: 4 | BE73: 3.00
C74: =1+C73 -> 67 | D74: Working accounts personnel | E74: NO | G74: =+E74 -> NO | H74: =IF(E74="","",SUM(K74:O74)) -> 0 | I74: 0.50 | J74: 0.00 | K74: =IF(OR(E74="",E74="NO"),$K$5,"") -> 0 | L74: =IF(AND($G74<$T74%,$G74>$Q74%),$L$5,"") ->  | M74: =IF(AND($G74<$V74%,$G74>$S74%),$M$5,"") ->  | N74: =IF(AND($G74<$X74%,$G74>$U74%),$N$5,"") ->  | O74: =IF(E74="YES",$O$5,"") ->  | Z74: 0 | AA74: NO | BB74: 4 | BC74: 0.50 | BD74: 2 | BE74: 0.00 | BF74: =SUM(BD72:BD74) -> 10.00 | BG74: =SUM(BE72:BE74) -> 4.00
A75: D. Student Support and participation | B75: D-1 Learning Support | C75: 68 | D75: Library facility | E75: YES | G75: =+E75 -> YES | H75: 4 | I75: 0.50 | J75: =IF(H75="","",+H75*I75*Z75) -> 2.00 | K75: =IF(OR(E75="",E75="NO"),$K$5,"") ->  | O75: =IF(E75="YES",$O$5,"") -> 4 | Z75: 1 | AA75: YES | BB75: 4 | BC75: 0.50 | BD75: 2 | BE75: 2.00
C76: 69 | D76: Working Librarian | E76: NO | G76: =+E76 -> NO | H76: 0 | I76: 0.25 | J76: 0.00 | K76: =IF(OR(E76="",E76="NO"),$K$5,"") -> 0 | O76: =IF(E76="YES",$O$5,"") ->  | Z76: 0 | BB76: 4 | BC76: 0.25 | BD76: 1 | BE76: 0.00
C77: 70 | D77: Whether library is automated | E77: NO | G77: =+E77 -> NO | H77: 0 | I77: 0.25 | J77: 0.00 | K77: =IF(OR(E77="",E77="NO"),$K$5,"") -> 0 | O77: =IF(E77="YES",$O$5,"") ->  | Z77: 0 | BB77: 4 | BC77: 0.25 | BD77: 1 | BE77: 0.00
C78: 71 | D78: Percentage of working Library staff against sanctioned posts | F78: 0 | G78: =IF(E78="","",ROUND(E78/F78,4)) ->  | H78: =IF(OR(E78="",F78="",F78=0),"",SUM(K78:O78)) ->  | I78: 0.25 | K78: =IF($G78<$R78%,$K$5,"") ->  | L78: =IF(AND($G78<$T78%,$G78>$Q78%),$L$5,"") ->  | M78: =IF(AND($G78<$V78%,$G78>$S78%),$M$5,"") ->  | N78: =IF(AND($G78<$X78%,$G78>$U78%),$N$5,"") ->  | O78: =IF(AND($G78<Y78%,G78>W78%),$O$5,"") ->  | P78: 0 | Q78: 19.999 | R78: 20 | S78: 39.999 | T78: 40 | U78: 59.999 | V78: 60 | W78: 79.999 | X78: 80 | Y78: 10000 | Z78: 0 | BB78: 4 | BC78: 0.25 | BD78: 1 | BE78: 0.00
C79: 72 | D79: Ratio of total books in library to total No. of students | E79: 8833 | F79: =+$E$7 -> 84.66 | G79: =IF(E79="","",ROUND(E79/F79,4)) -> 104.3350 | H79: 4 | I79: 0.50 | J79: 2.00 | K79: =IF($G79<$R79,$K$5,"") ->  | L79: =IF(AND($G79<$T79,$G79>$Q79),$L$5,"") ->  | M79: =IF(AND($G79<$V79,$G79>$S79),$M$5,"") ->  | N79: =IF(AND($G79<$X79,$G79>$U79),$N$5,"") ->  | O79: =IF(AND($G79<Y79,G79>W79),$O$5,"") -> 4 | P79: 0 | Q79: 0.999 | R79: 1 | S79: 2.9999 | T79: 3 | U79: 3.9999 | V79: 4 | W79: 4.9999 | X79: 5 | Y79: 10000 | Z79: 1 | AA79: YES | BB79: 4 | BC79: 0.50 | BD79: 2 | BE79: 2.00
C80: 73 | D80: No. of Reading Rooms | E80: 0 | G80: =+E80 -> 0 | H80: =IF(E80="","",SUM(K80:O80)) -> 0 | I80: 0.50 | J80: 0.00 | K80: =IF($E80<$R80,$K$5,"") -> 0 | M80: =IF(AND($E80<$V80,$E80>$S80),$M$5,"") ->  | O80: =IF(AND($E80<Y80,E80>W80),$O$5,"") ->  | P80: 0 | Q80: 0.999 | R80: 0.999 | S80: 0.999 | T80: 1 | U80: 1.9999 | V80: 2 | W80: 1.9999 | X80: 2 | Y80: 10000 | Z80: 0 | BB80: 4 | BC80: 0.50 | BD80: 2 | BE80: 0.00
C81: 74 | D81: No. of copies of News papers subscribed per 100 students | E81: 0 | F81: =+$E$7 -> 84.66 | G81: =IF(E81="","",ROUND(E81/(F81/100),4)) -> 0.0000 | H81: =IF(OR(E81="",F81="",F81=0),"",SUM(K81:O81)) -> 0 | I81: 0.25 | J81: 0.00 | K81: =IF($G81<$R81,$K$5,"") -> 0 | L81: =IF(AND($G81<$T81,$G81>$Q81),$L$5,"") ->  | M81: =IF(AND($G81<$V81,$G81>$S81),$M$5,"") ->  | N81: =IF(AND($G81<$X81,$G81>$U81),$N$5,"") ->  | O81: =IF(AND($G81<Y81,G81>W81),$O$5,"") ->  | P81: 0 | Q81: 0.999 | R81: 1 | S81: 1.9999 | T81: 2 | U81: 2.9999 | V81: 3 | W81: 3.9999 | X81: 4 | Y81: 10000 | Z81: 0 | BB81: 4 | BC81: 0.25 | BD81: 1 | BE81: 0.00
C82: 75 | D82: Subscription of employment News paper | E82: NO | G82: =+E82 -> NO | H82: =IF(E82="","",SUM(K82:O82)) -> 0 | I82: 0.25 | J82: 0.00 | K82: =IF(OR(E82="",E82="NO"),$K$5,"") -> 0 | L82: =IF(AND($G82<$T82%,$G82>$Q82%),$L$5,"") ->  | M82: =IF(AND($G82<$V82%,$G82>$S82%),$M$5,"") ->  | N82: =IF(AND($G82<$X82%,$G82>$U82%),$N$5,"") ->  | O82: =IF(E82="YES",$O$5,"") ->  | Z82: 0 | BB82: 4 | BC82: 0.25 | BD82: 1 | BE82: 0.00
C83: 76 | D83: No. of magazines subscribed | E83: 0 | G83: =+E83 -> 0 | H83: =IF(E83="","",SUM(K83:O83)) -> 0 | I83: 0.25 | J83: 0.00 | K83: =IF($E83<$R83,$K$5,"") -> 0 | L83: =IF(AND($E83<$T83,$E83>$Q83),$L$5,"") ->  | M83: =IF(AND($E83<$V83,$E83>$S83),$M$5,"") ->  | N83: =IF(AND($E83<$X83,$E83>$U83),$N$5,"") ->  | O83: =IF(AND($E83<Y83,E83>W83),$O$5,"") ->  | P83: 0 | Q83: 0.999 | R83: 1 | S83: 3.9999 | T83: 4 | U83: 6.9999 | V83: 7 | W83: 9.9999 | X83: 10 | Y83: 10000 | Z83: 0 | BB83: 4 | BC83: 0.25 | BD83: 1 | BE83: 0.00
C84: 77 | D84: Number of journals subscribed per subject | E84: 1 | F84: =+$F$60 -> 0 | G84: =IF(E84="","",ROUND(E84/(F84/1),4)) ->  | H84: =IF(OR(E84="",F84="",F84=0),"",SUM(K84:O84)) ->  | I84: 0.50 | K84: =IF($G84<$R84,$K$5,"") ->  | L84: =IF(AND($G84<$T84,$G84>$Q84),$L$5,"") ->  | M84: =IF(AND($G84<$V84,$G84>$S84),$M$5,"") ->  | N84: =IF(AND($G84<$X84,$G84>$U84),$N$5,"") ->  | O84: =IF(AND($G84<Y84,G84>W84),$O$5,"") ->  | P84: 0 | Q84: 0.999 | R84: 1 | S84: 1.9999 | T84: 2 | U84: 2.9999 | V84: 3 | W84: 3.9999 | X84: 4 | Y84: 10000 | Z84: 1 | AA84: YES | BB84: 4 | BC84: 0.50 | BD84: 2 | BE84: 0.00 | BF84: =SUM(BD75:BD84) -> 14.00 | BG84: =SUM(BE75:BE84) -> 4.00
A85: D. Student Support and participation | B85: D-2 Counseling and Mentoring | C85: 78 | D85: Percentage of Students guided through Counselling cell | E85: 0 | F85: =+$E$7 -> 84.66 | G85: =IF(E85="","",ROUND(E85/F85,4)) -> 0.0000% | H85: 0 | I85: 0.25 | J85: 0.00 | K85: =IF($G85<$R85%,$K$5,"") -> 0 | L85: =IF(AND($G85<$T85%,$G85>$Q85%),$L$5,"") ->  | M85: =IF(AND($G85<$V85%,$G85>$S85%),$M$5,"") ->  | N85: =IF(AND($G85<$X85%,$G85>$U85%),$N$5,"") ->  | O85: =IF(AND($G85<Y85%,G85>W85%),$O$5,"") ->  | P85: 0 | Q85: 5e-05 | R85: 0.0001 | S85: 1.9999 | T85: 2 | U85: 3.9999 | V85: 4 | W85: 5.9999 | X85: 6 | Y85: 10000 | Z85: 1 | AA85: YES | BB85: 4 | BC85: 0.25 | BD85: 1 | BE85: 0.00
C86: 79 | D86: Sports Ground | E86: YES | G86: =+E86 -> YES | H86: =IF(E86="","",SUM(K86:O86)) -> 4 | I86: 0.25 | J86: 1.00 | K86: =IF(OR(E86="",E86="NO"),$K$5,"") ->  | L86: =IF(AND($G86<$T86%,$G86>$Q86%),$L$5,"") ->  | M86: =IF(AND($G86<$V86%,$G86>$S86%),$M$5,"") ->  | N86: =IF(AND($G86<$X86%,$G86>$U86%),$N$5,"") ->  | O86: =IF(E86="YES",$O$5,"") -> 4 | Z86: 1 | AA86: YES | BB86: 4 | BC86: 0.25 | BD86: 1 | BE86: 1.00
C87: 80 | D87: Working Director Physical Education | E87: NO | G87: NO | H87: 0 | I87: 0.25 | J87: 0.00 | K87: =IF(OR(E87="",E87="NO"),$K$5,"") -> 0 | O87: =IF(E87="YES",$O$5,"") ->  | Z87: 0 | BB87: 4 | BC87: 0.25 | BD87: 1 | BE87: 0.00
C88: 81 | D88: No. of games for which complete set of equipments and gears available | E88: 6 | G88: 6 | H88: 2 | I88: 0.25 | J88: 0.50 | K88: =IF($E88<$R88,$K$5,"") ->  | L88: =IF(AND($E88<$T88,$E88>$Q88),$L$5,"") ->  | M88: =IF(AND($E88<$V88,$E88>$S88),$M$5,"") -> 2 | N88: =IF(AND($E88<$X88,$E88>$U88),$N$5,"") ->  | O88: =IF(AND($E88<Y88,E88>W88),$O$5,"") ->  | P88: 0 | Q88: 2.9999 | R88: 3 | S88: 3.9999 | T88: 4 | U88: 6.9999 | V88: 7 | W88: 9.9999 | X88: 10 | Y88: 10000 | Z88: 1 | AA88: YES | BB88: 4 | BC88: 0.25 | BD88: 1 | BE88: 0.50
C89: 82 | D89: Total No. of students benefited by issuing of sports equipments and gears | E89: 80 | G89: 80 | H89: 2 | I89: 0.25 | J89: 0.50 | K89: =IF($E89<$R89,$K$5,"") ->  | L89: =IF(AND($E89<$T89,$E89>$Q89),$L$5,"") ->  | M89: =IF(AND($E89<$V89,$E89>$S89),$M$5,"") -> 2 | N89: =IF(AND($E89<$X89,$E89>$U89),$N$5,"") ->  | O89: =IF(AND($E89<Y89,E89>W89),$O$5,"") ->  | P89: 0 | Q89: 5e-05 | R89: 0.0001 | S89: 49.9999 | T89: 50 | U89: 99.9999 | V89: 100 | W89: 199.9999 | X89: 200 | Y89: 10000 | Z89: 1 | AA89: YES | BB89: 4 | BC89: 0.25 | BD89: 1 | BE89: 0.50
C90: 83 | D90: No. of events at Inter-college / University / National and International level in which college participated | E90: 5 | G90: 5 | H90: 1 | I90: 0.50 | J90: 0.50 | K90: =IF($E90<$R90,$K$5,"") ->  | L90: =IF(AND($E90<$T90,$E90>$Q90),$L$5,"") -> 1 | M90: =IF(AND($E90<$V90,$E90>$S90),$M$5,"") ->  | N90: =IF(AND($E90<$X90,$E90>$U90),$N$5,"") ->  | O90: =IF(AND($E90<Y90,E90>W90),$O$5,"") ->  | P90: 0 | Q90: 0.9999 | R90: 1 | S90: 5.9999 | T90: 6 | U90: 10.9999 | V90: 11 | W90: 15.9999 | X90: 16 | Y90: 10000 | Z90: 1 | AA90: YES | BB90: 4 | BC90: 0.50 | BD90: 2 | BE90: 0.50
C91: 84 | D91: No. of prizes won by college at Inter-college / University /National and International sports/ games | E91: 6 | G91: 6 | H91: 3 | I91: 0.25 | J91: 0.75 | K91: =IF($E91<$R91,$K$5,"") ->  | L91: =IF(AND($E91<$T91,$E91>$Q91),$L$5,"") ->  | M91: =IF(AND($E91<$V91,$E91>$S91),$M$5,"") ->  | N91: =IF(AND($E91<$X91,$E91>$U91),$N$5,"") -> 3 | O91: =IF(AND($E91<Y91,E91>W91),$O$5,"") ->  | P91: 0 | Q91: 0.9999 | R91: 1 | S91: 2.9999 | T91: 3 | U91: 5.9999 | V91: 6 | W91: 8.9999 | X91: 9 | Y91: 10000 | Z91: 1 | AA91: YES | BB91: 4 | BC91: 0.25 | BD91: 1 | BE91: 0.75
C92: 85 | D92: Anti ragging cell | E92: YES | G92: YES | H92: 4 | I92: 0.25 | J92: 1.00 | K92: =IF(OR(E92="",E92="NO"),$K$5,"") ->  | L92: =IF(AND($G92<$T92%,$G92>$Q92%),$L$5,"") ->  | M92: =IF(AND($G92<$V92%,$G92>$S92%),$M$5,"") ->  | N92: =IF(AND($G92<$X92%,$G92>$U92%),$N$5,"") ->  | O92: =IF(E92="YES",$O$5,"") -> 4 | Z92: 1 | AA92: YES | BB92: 4 | BC92: 0.25 | BD92: 1 | BE92: 1.00
C93: 86 | D93: Women cell | E93: YES | G93: YES | H93: 4 | I93: 0.25 | J93: 1.00 | K93: =IF(OR(E93="",E93="NO"),$K$5,"") ->  | O93: =IF(E93="YES",$O$5,"") -> 4 | Z93: 1 | AA93: YES | BB93: 4 | BC93: 0.25 | BD93: 1 | BE93: 1.00
C94: 87 | D94: Sexual harassment complaint cell | E94: YES | G94: YES | H94: 4 | I94: 0.25 | J94: 1.00 | K94: =IF(OR(E94="",E94="NO"),$K$5,"") ->  | O94: =IF(E94="YES",$O$5,"") -> 4 | Z94: 1 | AA94: YES | BB94: 4 | BC94: 0.25 | BD94: 1 | BE94: 1.00
A95: D. Student Support and participation | B95: D-2 Counseling and Mentoring | C95: 88 | D95: Total No. of Extra-curricular activities organised | E95: 10 | G95: 10 | H95: 2 | I95: 0.50 | J95: 1.00 | K95: =IF($E95<$R95,$K$5,"") ->  | L95: =IF(AND($E95<$T95,$E95>$Q95),$L$5,"") ->  | M95: =IF(AND($E95<$V95,$E95>$S95),$M$5,"") -> 2 | N95: =IF(AND($E95<$X95,$E95>$U95),$N$5,"") ->  | O95: =IF(AND($E95<Y95,E95>W95),$O$5,"") ->  | P95: 0 | Q95: 0.9999 | R95: 1 | S95: 5.9999 | T95: 6 | U95: 10.9999 | V95: 11 | W95: 15.9999 | X95: 16 | Y95: 10000 | Z95: 1 | AA95: YES | BB95: 4 | BC95: 0.50 | BD95: 2 | BE95: 1.00
C96: 89 | D96: Is Remedial coaching facility being provided | E96: NO | G96: NO | H96: 0 | I96: 0.25 | J96: 0.00 | K96: =IF(OR(E96="",E96="NO"),$K$5,"") -> 0 | L96: =IF(AND($G96<$T96%,$G96>$Q96%),$L$5,"") ->  | M96: =IF(AND($G96<$V96%,$G96>$S96%),$M$5,"") ->  | N96: =IF(AND($G96<$X96%,$G96>$U96%),$N$5,"") ->  | O96: =IF(E96="YES",$O$5,"") ->  | Z96: 0 | BB96: 4 | BC96: 0.25 | BD96: 1 | BE96: 0.00
C97: 90 | D97: Percentage of Students utilising IT / ICT lab. Facility to total No. of students | E97: 70 | F97: =+$E$7 -> 84.66 | G97: =IF(E97="","",ROUND(E97/F97,4)) -> 82.6800% | H97: =IF(OR(E97="",F97="",F97=0),"",SUM(K97:O97)) -> 4 | I97: 0.25 | J97: 1.00 | K97: =IF($G97<$R97%,$K$5,"") ->  | L97: =IF(AND($G97<$T97%,$G97>$Q97%),$L$5,"") ->  | M97: =IF(AND($G97<$V97%,$G97>$S97%),$M$5,"") ->  | N97: =IF(AND($G97<$X97%,$G97>$U97%),$N$5,"") ->  | O97: =IF(AND($G97<Y97%,G97>W97%),$O$5,"") -> 4 | P97: 0 | Q97: 5e-05 | R97: 0.0001 | S97: 4.9999 | T97: 5 | U97: 9.9999 | V97: 10 | W97: 14.9999 | X97: 15 | Y97: 10000 | Z97: 1 | AA97: YES | BB97: 4 | BC97: 0.25 | BD97: 1 | BE97: 1.00
C98: 91 | D98: Entrepreneurship / Skill Development promotional cell in the college | E98: NO | G98: =+E98 -> NO | H98: =IF(E98="","",SUM(K98:O98)) -> 0 | I98: 0.25 | J98: 0.00 | K98: =IF(OR(E98="",E98="NO"),$K$5,"") -> 0 | L98: =IF(AND($G98<$T98%,$G98>$Q98%),$L$5,"") ->  | M98: =IF(AND($G98<$V98%,$G98>$S98%),$M$5,"") ->  | N98: =IF(AND($G98<$X98%,$G98>$U98%),$N$5,"") ->  | O98: =IF(E98="YES",$O$5,"") ->  | Z98: 0 | BB98: 4 | BC98: 0.25 | BD98: 1 | BE98: 0.00
C99: 92 | D99: NSS units in the college | E99: YES | G99: YES | H99: 4 | I99: 0.50 | J99: 2.00 | O99: 4 | Z99: 1 | AA99: YES | BB99: 4 | BC99: 0.50 | BD99: 2 | BE99: 2.00
C100: 93 | D100: Rover/ Ranger unit | E100: NO | G100: NO | H100: 0 | I100: 0.25 | J100: 0.00 | K100: 0 | Z100: 0 | BB100: 4 | BC100: 0.25 | BD100: 1 | BE100: 0.00
C101: 94 | D101: NCC unit in the college | E101: NO | G101: NO | H101: 0 | I101: 0.25 | J101: 0.00 | K101: 0 | Z101: 0 | BB101: 4 | BC101: 0.25 | BD101: 1 | BE101: 0.00
C102: 95 | D102: Employment/ job vacancy display board for students | E102: NO | G102: NO | H102: 0 | I102: 0.25 | J102: 0.00 | K102: 0 | Z102: 0 | BB102: 4 | BC102: 0.25 | BD102: 1 | BE102: 0.00
C103: 96 | D103: First-Aid kit available | E103: YES | G103: YES | H103: 4 | I103: 0.25 | J103: 1.00 | O103: 4 | Z103: 1 | AA103: YES | BB103: 4 | BC103: 0.25 | BD103: 1 | BE103: 1.00
C104: 97 | D104: Functional Fire Extinguishers available | E104: YES | G104: YES | H104: 4 | I104: 0.25 | J104: 1.00 | O104: 4 | Z104: 1 | AA104: YES | BB104: 4 | BC104: 0.25 | BD104: 1 | BE104: 1.00
C105: 98 | D105: Students suggestion / feedback box available | E105: YES | G105: YES | H105: 4 | I105: 0.25 | J105: 1.00 | O105: 4 | Z105: 1 | AA105: YES | BB105: 4 | BC105: 0.25 | BD105: 1 | BE105: 1.00
A106: D. Student Support and participation | B106: D-2 Counseling and Mentoring | C106: 99 | D106: Canteen facility available | E106: NO | G106: NO | H106: 0 | I106: 0.25 | J106: 0.00 | K106: 0 | Z106: 0 | BB106: 4 | BC106: 0.25 | BD106: 1 | BE106: 0.00
C107: 100 | D107: Hostel facility available | E107: NO | G107: NO | H107: 0 | I107: 0.25 | J107: 0.00 | K107: 0 | Z107: 0 | BB107: 4 | BC107: 0.25 | BD107: 1 | BE107: 0.00 | BF107: =SUM(BD85:BD107) -> 26.00 | BG107: =SUM(BE85:BE107) -> 13.25
A108: E. Financial Resources and Utilisation | B108: E-1 Financial Management | C108: 101 | D108: Percentage of total grants utilized in last 3 years | E108: 100 | F108: 100 | G108: =IF(E108="","",ROUND(E108/F108,4)) -> 100.0000% | H108: =IF(OR(E108="",F108="",F108=0),"",SUM(K108:O108)) -> 4 | I108: 2.00 | J108: 8.00 | K108: =IF($G108<$R108%,$K$5,"") ->  | L108: =IF(AND($G108<$T108%,$G108>$Q108%),$L$5,"") ->  | M108: =IF(AND($G108<$V108%,$G108>$S108%),$M$5,"") ->  | N108: =IF(AND($G108<$X108%,$G108>$U108%),$N$5,"") ->  | O108: =IF(AND($G108<Y108%,G108>W108%),$O$5,"") -> 4 | P108: 0 | Q108: 19.9999 | R108: 20 | S108: 39.9999 | T108: 40 | U108: 59.9999 | V108: 60 | W108: 79.9999 | X108: 80 | Y108: 10000 | Z108: 1 | AA108: YES | AW108: =IF(E108>F108,"ERROR INPUT","") ->  | BB108: 4 | BC108: 2.00 | BD108: 8 | BE108: 8.00
C109: 102 | D109: Average annual per capita capital expenditure | E109: 90 | F109: =+$E$7 -> 84.66 | G109: =IF(E109="","",ROUND(E109/F109,4)) -> 106.3100% | H109: =IF(E109="","",SUM(K109:O109)) -> 1 | I109: 2.00 | J109: 2.00 | K109: =IF($G109<$R109,$K$5,"") ->  | L109: =IF(AND($G109<$T109,$G109>$Q109),$L$5,"") -> 1 | M109: =IF(AND($G109<$V109,$G109>$S109),$M$5,"") ->  | N109: =IF(AND($G109<$X109,$G109>$U109),$N$5,"") ->  | O109: =IF(AND($G109<Y109,G109>W109),$O$5,"") ->  | P109: 0 | Q109: 5e-05 | R109: 0.0001 | S109: 499.9999 | T109: 500 | U109: 999.9999 | V109: 1000 | W109: 1499.9999 | X109: 1500 | Y109: 100000000 | Z109: 1 | AA109: YES | BB109: 4 | BC109: 2.00 | BD109: 8 | BE109: 2.00
C110: 103 | D110: Average annual per capita operational expenditure | E110: 90 | F110: =+$E$7 -> 84.66 | G110: =IF(E110="","",ROUND(E110/F110,4)) -> 106.3100% | H110: 0 | I110: 2.00 | J110: 0.00 | K110: =IF($G110<$R110,$K$5,"") -> 0 | L110: =IF(AND($G110<$T110,$G110>$Q110),$L$5,"") ->  | M110: =IF(AND($G110<$V110,$G110>$S110),$M$5,"") ->  | N110: =IF(AND($G110<$X110,$G110>$U110),$N$5,"") ->  | O110: =IF(AND($G110<Y110,G110>W110),$O$5,"") ->  | P110: 0 | Q110: 199.9999 | R110: 200 | S110: 399.9999 | T110: 400 | U110: 599.9999 | V110: 600 | W110: 799.9999 | X110: 800 | Y110: 100000000 | Z110: 1 | AA110: YES | BB110: 4 | BC110: 2.00 | BD110: 8 | BE110: 0.00
C111: 104 | D111: No. of Internal/ CA Audits undertaken during last 3 years | G111: =+E111 -> 0 | I111: 2.00 | K111: =IF($E111<$R111,$K$5,"") -> 0 | L111: =IF(AND($E111<$T111,$E111>$Q111),$L$5,"") ->  | M111: =IF(AND($E111<$V111,$E111>$S111),$M$5,"") ->  | N111: =IF(AND($E111<$X111,$E111>$U111),$N$5,"") ->  | O111: =IF(AND($E111<Y111,E111>W111),$O$5,"") ->  | P111: 0 | Q111: 0.9999 | R111: 1 | S111: 1.9999 | T111: 2 | U111: 2.9999 | V111: 3 | W111: 3.9999 | X111: 4 | Y111: 10000 | Z111: 0 | AA111: NO | BB111: 4 | BC111: 2.00 | BD111: 8 | BE111: 0.00 | BF111: =SUM(BD108:BD111) -> 32.00 | BG111: =SUM(BE108:BE111) -> 10.00
B112: E-2 Self Financing Efforts | C112: 105 | D112: Funds received from sources other than state or central govt (last 03 years) | E112: 0 | G112: 0 | H112: 0 | I112: 2.00 | J112: 0.00 | K112: 0 | P112: 0 | Q112: 0.9999 | R112: 1 | S112: =-0.1+100000 -> 99999.9 | T112: 100000 | U112: =-0.1+600000 -> 599999.9 | V112: 600000 | W112: =-0.1+2000000 -> 1999999.9 | X112: 2000000 | Y112: 1000000000 | Z112: 0 | AA112: NO | BB112: 4 | BC112: 2.00 | BD112: 8 | BE112: 0.00 | BF112: =+BD112 -> 8 | BG112: =+BE112 -> 0
A113: F. Commitment, Leadership and Management | B113: F-1 Societal Footprint | C113: 106 | D113: Progress made under Green campus initiative (No. Of activities) | E113: 1 | G113: 1 | H113: 1 | I113: 0.50 | J113: 0.50 | L113: 1 | P113: 0 | Q113: 0.9999 | R113: 1 | S113: 3.99999 | T113: 4 | U113: 6.9999 | V113: 7 | W113: 9.9999 | X113: 10 | Y113: 10000 | Z113: 1 | AA113: YES | BB113: 4 | BC113: 0.50 | BD113: 2 | BE113: 0.50
C114: 107 | D114: No. of efforts undertaken for creating national integration and Community awareness among students | E114: 3 | G114: 3 | H114: 1 | I114: 0.50 | J114: 0.50 | L114: 1 | P114: 0 | Q114: 0.9999 | R114: 1 | S114: 3.99999 | T114: 4 | U114: 6.9999 | V114: 7 | W114: 9.9999 | X114: 10 | Y114: 10000 | Z114: 1 | AA114: YES | BB114: 4 | BC114: 0.50 | BD114: 2 | BE114: 0.50
C115: 108 | D115: No. of Institutional/ Corporate Collaborative activities undertaken | E115: 0 | G115: 0 | H115: 0 | I115: 0.50 | J115: 0.00 | K115: 0 | P115: 0 | Q115: 0.9999 | R115: 1 | S115: 1.9999 | T115: 2 | U115: 2.9999 | V115: 3 | W115: 3.9999 | X115: 4 | Y115: 10000 | Z115: 0 | BB115: 4 | BC115: 0.50 | BD115: 2 | BE115: 0.00 | BF115: =SUM(BD113:BD115) -> 6.00 | BG115: =SUM(BE113:BE115) -> 1.00
A116: F. Commitment, Leadership and Management | B116: F-2 Innovatin, Values and Best practices | C116: 109 | D116: No. of initiatives undertaken for Students welfare | E116: 0 | G116: 0 | H116: 0 | I116: 0.50 | J116: 0.00 | K116: 0 | P116: 0 | Q116: 0.9999 | R116: 1 | S116: 1.9999 | T116: 2 | U116: 2.9999 | V116: 3 | W116: 3.9999 | X116: 4 | Y116: 10000 | Z116: 0 | BB116: 4 | BC116: 0.50 | BD116: 2 | BE116: 0.00
C117: 110 | D117: Faculty Development Initiatives | E117: 1 | G117: 1 | H117: 1 | I117: 0.50 | J117: 0.50 | L117: 1 | P117: 0 | Q117: 0.9999 | R117: 1 | S117: 1.9999 | T117: 2 | U117: 2.9999 | V117: 3 | W117: 3.9999 | X117: 4 | Y117: 10000 | Z117: 1 | AA117: YES | BB117: 4 | BC117: 0.50 | BD117: 2 | BE117: 0.50
C118: 111 | D118: No. Of Books collected under Community Book Bank scheme | E118: 20 | G118: 20 | H118: 1 | I118: 0.50 | J118: 0.50 | L118: 1 | P118: 0 | Q118: 0.9999 | R118: 1 | S118: 100.00001 | T118: 101 | U118: 200.0001 | V118: 201 | W118: 499.9999 | X118: 500 | Y118: 10000 | Z118: 1 | AA118: YES | BB118: 4 | BC118: 0.50 | BD118: 2 | BE118: 0.50
C119: 112 | D119: Participation of college in District level campaigning/ activities organized by district administration | E119: 0 | G119: 0 | H119: 0 | I119: 0.50 | J119: 0.00 | K119: 0 | P119: 0 | Q119: 0.9999 | R119: 1 | S119: 2.9999 | T119: 3 | U119: 4.9999 | V119: 5 | W119: 6.9999 | X119: 7 | Y119: 10000 | Z119: 0 | BB119: 4 | BC119: 0.50 | BD119: 2 | BE119: 0.00
C120: 113 | D120: Any other best/ unique performance/ activity/ social contribution | E120: YES | G120: YES | H120: 4 | I120: 1.00 | J120: 4.00 | K120: =IF(OR(E120="",E120="NO"),$K$5,"") ->  | L120: =IF(AND($G120<$T120%,$G120>$Q120%),$L$5,"") ->  | M120: =IF(AND($G120<$V120%,$G120>$S120%),$M$5,"") ->  | N120: =IF(AND($G120<$X120%,$G120>$U120%),$N$5,"") ->  | O120: =IF(E120="YES",$O$5,"") -> 4 | Z120: 1 | AA120: YES | BB120: 4 | BC120: 1.00 | BD120: 4 | BE120: 4.00
C121: 114 | D121: Percentage of students participating in Inter House sport activities | E121: 80 | F121: =+$E$7 -> 84.66 | G121: =IF(E121="","",ROUND(E121/F121,4)) -> 94.5000% | H121: =IF(OR(E121="",F121="",F121=0),"",SUM(K121:O121)) -> 4 | I121: 0.50 | J121: 2.00 | K121: =IF($G121<$R121%,$K$5,"") ->  | L121: =IF(AND($G121<$T121%,$G121>$Q121%),$L$5,"") ->  | M121: =IF(AND($G121<$V121%,$G121>$S121%),$M$5,"") ->  | N121: =IF(AND($G121<$X121%,$G121>$U121%),$N$5,"") ->  | O121: =IF(AND($G121<Y121%,G121>W121%),$O$5,"") -> 4 | P121: 0 | Q121: 5e-05 | R121: 0.0001 | S121: 9.9999 | T121: 10 | U121: 19.9999 | V121: 20 | W121: 29.9999 | X121: 30 | Y121: 10000 | Z121: 1 | AA121: YES | BB121: 4 | BC121: 0.50 | BD121: 2 | BE121: 2.00
C122: 115 | D122: Is there any formal mechanism for Student feedback in place ? | E122: NO | G122: =+E122 -> NO | H122: =IF(E122="","",SUM(K122:O122)) -> 0 | I122: 0.50 | J122: 0.00 | K122: =IF(OR(E122="",E122="NO"),$K$5,"") -> 0 | L122: =IF(AND($G122<$T122%,$G122>$Q122%),$L$5,"") ->  | M122: =IF(AND($G122<$V122%,$G122>$S122%),$M$5,"") ->  | N122: =IF(AND($G122<$X122%,$G122>$U122%),$N$5,"") ->  | O122: =IF(E122="YES",$O$5,"") ->  | Z122: 0 | BB122: 4 | BC122: 0.50 | BD122: 2 | BE122: 0.00
C123: 116 | D123: Whether the college has functional solar power generating system | E123: YES | G123: =+E123 -> YES | H123: 4 | I123: 0.50 | J123: 2.00 | K123: =IF(OR(E123="",E123="NO"),$K$5,"") ->  | O123: =IF(E123="YES",$O$5,"") -> 4 | Z123: 1 | AA123: YES | BB123: 4 | BC123: 0.50 | BD123: 2 | BE123: 2.00 | BF123: =SUM(BD116:BD123) -> 18.00 | BG123: =SUM(BE116:BE123) -> 9.00
B124: F-3 Effective Implementatin of Govt. Schemes | C124: 117 | D124: Implementation of Scholarships / Incentive schemes (distributional efficacy) | E124: No Pendency | G124: =+E124 -> No Pendency | H124: 4 | I124: 1.00 | J124: 4.00 | K124: =IF(OR(E124="",E124="YES PENDENCY"),$K$5,"") ->  | O124: =IF(E124="NO PENDENCY",$O$5,"") -> 4 | Z124: 1 | AA124: YES | BB124: 4 | BC124: 1.00 | BD124: 4 | BE124: 4.00
C125: 118 | D125: Percentage of students placed through Employment fairs organised by the college | E125: 0 | F125: =+$E$7 -> 84.66 | G125: =IF(E125="","",ROUND(E125/F125,4)) -> 0.0000% | H125: =IF(OR(E125="",F125="",F125=0),"",SUM(K125:O125)) -> 0 | I125: 0.50 | J125: 0.00 | K125: =IF($G125<$R125%,$K$5,"") -> 0 | L125: =IF(AND($G125<$T125%,$G125>$Q125%),$L$5,"") ->  | M125: =IF(AND($G125<$V125%,$G125>$S125%),$M$5,"") ->  | N125: =IF(AND($G125<$X125%,$G125>$U125%),$N$5,"") ->  | O125: =IF(AND($G125<Y125%,G125>W125%),$O$5,"") ->  | P125: 0 | Q125: 5e-05 | R125: 0.0001 | S125: 1.9999 | T125: 2 | U125: 3.9999 | V125: 4 | W125: 5.9999 | X125: 6 | Y125: 10000 | Z125: 0 | BB125: 4 | BC125: 0.50 | BD125: 2 | BE125: 0.00
C126: 119 | D126: Percentage of students who received GK Books | E126: 80 | F126: =+$E$7 -> 84.66 | G126: 94.5000% | H126: 4 | I126: 0.50 | J126: 2.00 | K126: =IF($G126<$R126%,$K$5,"") ->  | L126: =IF(AND($G126<$T126%,$G126>$Q126%),$L$5,"") ->  | M126: =IF(AND($G126<$V126%,$G126>$S126%),$M$5,"") ->  | N126: =IF(AND($G126<$X126%,$G126>$U126%),$N$5,"") ->  | O126: =IF(AND($G126<Y126%,G126>W126%),$O$5,"") -> 4 | P126: 0 | Q126: 19.999 | R126: 20 | S126: 39.999 | T126: 40 | U126: 59.999 | V126: 60 | W126: 79.999 | X126: 80 | Y126: 10000 | Z126: 1 | AA126: YES | BB126: 4 | BC126: 0.50 | BD126: 2 | BE126: 2.00
A127: F. Commitment, Leadership and Management | B127: F-3 Effective Implementatin of Govt. Schemes | C127: 120 | D127: Percentage of students who received English Grammar Books | E127: 80 | F127: 84.66 | G127: =IF(E127="","",ROUND(E127/F127,4)) -> 94.5000% | H127: 4 | I127: 0.50 | J127: 2.00 | K127: =IF($G127<$R127%,$K$5,"") ->  | L127: =IF(AND($G127<$T127%,$G127>$Q127%),$L$5,"") ->  | M127: =IF(AND($G127<$V127%,$G127>$S127%),$M$5,"") ->  | N127: =IF(AND($G127<$X127%,$G127>$U127%),$N$5,"") ->  | O127: =IF(AND($G127<Y127%,G127>W127%),$O$5,"") -> 4 | P127: 0 | Q127: 19.999 | R127: 20 | S127: 39.999 | T127: 40 | U127: 59.999 | V127: 60 | W127: 79.999 | X127: 80 | Y127: 10000 | Z127: 1 | AA127: YES | BB127: 4 | BC127: 0.50 | BD127: 2 | BE127: 2.00
C128: 121 | D128: Classes organized under Pratiyogita Dakshta Programme [{(Actual No. of Classes)/ (4*No. of days)}*100 ] | G128: =IF(E128="","",ROUND(E128/(4*F128),4)*100) ->  | I128: 1.00 | K128: =IF($G128<$R128,$K$5,"") ->  | L128: =IF(AND($G128<$T128,$G128>$Q128),$L$5,"") ->  | M128: =IF(AND($G128<$V128,$G128>$S128),$M$5,"") ->  | N128: =IF(AND($G128<$X128,$G128>$U128),$N$5,"") ->  | O128: =IF(AND($G128<Y128,G128>W128),$O$5,"") ->  | P128: 0 | Q128: 19.999 | R128: 20 | S128: 39.999 | T128: 40 | U128: 59.999 | V128: 60 | W128: 79.999 | X128: 80 | Y128: 10000 | Z128: 0 | BB128: 4 | BC128: 1.00 | BD128: 4 | BE128: 0.00
C129: 122 | D129: Percentage of Students who appeared in State Level GK Competition | E129: 0 | F129: =+$E$7 -> 84.66 | G129: =IF(E129="","",ROUND(E129/F129,4)) -> 0.0000% | H129: 0 | I129: 0.50 | J129: 0.00 | K129: =IF($G129<$R129%,$K$5,"") -> 0 | L129: =IF(AND($G129<$T129%,$G129>$Q129%),$L$5,"") ->  | M129: =IF(AND($G129<$V129%,$G129>$S129%),$M$5,"") ->  | N129: =IF(AND($G129<$X129%,$G129>$U129%),$N$5,"") ->  | O129: =IF(AND($G129<Y129%,G129>W129%),$O$5,"") ->  | P129: 0 | Q129: 19.999 | R129: 20 | S129: 39.999 | T129: 40 | U129: 59.999 | V129: 60 | W129: 79.999 | X129: 80 | Y129: 10000 | Z129: 0 | BB129: 4 | BC129: 0.50 | BD129: 2 | BE129: 0.00
C130: 123 | D130: No. of trees planted | E130: 430 | G130: =+E130 -> 430 | H130: =IF(E130="","",SUM(K130:O130)) -> 4 | I130: 1.50 | J130: 6.00 | K130: =IF($E130<$R130,$K$5,"") ->  | L130: =IF(AND($E130<$T130,$E130>$Q130),$L$5,"") ->  | M130: =IF(AND($E130<$V130,$E130>$S130),$M$5,"") ->  | N130: =IF(AND($E130<$X130,$E130>$U130),$N$5,"") ->  | O130: =IF(AND($E130<Y130,E130>W130),$O$5,"") -> 4 | P130: 0 | Q130: 10.0001 | R130: 11 | S130: 50.0001 | T130: 51 | U130: 100.0001 | V130: 101 | W130: 200.0001 | X130: 201 | Y130: 10000 | Z130: 1 | AA130: YES | BB130: 4 | BC130: 1.50 | BD130: 6 | BE130: 6.00
C131: 124 | D131: Average Percentage of Students who turned up for Monthly Test | E131: 40 | F131: =+$E$7 -> 84.66 | G131: =IF(E131="","",ROUND(E131/F131,4)) -> 47.2500% | H131: =IF(OR(E131="",F131="",F131=0),"",SUM(K131:O131)) -> 2 | I131: 0.50 | J131: 1.00 | K131: =IF($G131<$R131%,$K$5,"") ->  | L131: =IF(AND($G131<$T131%,$G131>$Q131%),$L$5,"") ->  | M131: =IF(AND($G131<$V131%,$G131>$S131%),$M$5,"") -> 2 | N131: =IF(AND($G131<$X131%,$G131>$U131%),$N$5,"") ->  | O131: =IF(AND($G131<Y131%,G131>W131%),$O$5,"") ->  | P131: 0 | Q131: 19.999 | R131: 20 | S131: 39.999 | T131: 40 | U131: 59.999 | V131: 60 | W131: 79.999 | X131: 80 | Y131: 10000 | Z131: 1 | AA131: YES | BB131: 4 | BC131: 0.50 | BD131: 2 | BE131: 1.00 | BF131: =SUM(BD124:BD131) -> 24.00 | BG131: =SUM(BE124:BE131) -> 15.00
B132: F-4 Strengthening the bond | C132: 125 | D132: No. of Interactive sessions organised for students with motivational mentors/ excellent performers | E132: 2 | G132: =+E132 -> 2 | H132: =IF(E132="","",SUM(K132:O132)) -> 2 | I132: 0.50 | J132: 1.00 | K132: =IF($E132<$R132,$K$5,"") ->  | L132: =IF(AND($E132<$T132,$E132>$Q132),$L$5,"") ->  | M132: =IF(AND($E132<$V132,$E132>$S132),$M$5,"") -> 2 | N132: =IF(AND($E132<$X132,$E132>$U132),$N$5,"") ->  | O132: =IF(AND($E132<Y132,E132>W132),$O$5,"") ->  | P132: 0 | Q132: 0.9999 | R132: 1 | S132: 1.9999 | T132: 2 | U132: 2.9999 | V132: 3 | W132: 3.9999 | X132: 4 | Y132: 10000 | Z132: 1 | AA132: YES | BB132: 4 | BC132: 0.50 | BD132: 2 | BE132: 1.00
C133: 126 | D133: No. of Students- Principal interactions | E133: 0 | G133: 0 | H133: 0 | I133: 0.50 | J133: 0.00 | K133: 0 | P133: 0 | Q133: 0.9999 | R133: 1 | S133: 1.9999 | T133: 2 | U133: 2.9999 | V133: 3 | W133: 3.9999 | X133: 4 | Y133: 10000 | Z133: 0 | BB133: 4 | BC133: 0.50 | BD133: 2 | BE133: 0.00
C134: 127 | D134: No. of Student- Teacher meetings other than class teaching | E134: 0 | G134: 0 | H134: 0 | I134: 0.50 | J134: 0.00 | K134: 0 | P134: 0 | Q134: 0.9999 | R134: 1 | S134: 1.9999 | T134: 2 | U134: 2.9999 | V134: 3 | W134: 3.9999 | X134: 4 | Y134: 10000 | Z134: 0 | BB134: 4 | BC134: 0.50 | BD134: 2 | BE134: 0.00
C135: 128 | D135: No. of Staff Council and Development committee meetings held | E135: 2 | G135: 2 | H135: 2 | I135: 0.50 | J135: 1.00 | M135: 2 | P135: 0 | Q135: 0.9999 | R135: 1 | S135: 1.9999 | T135: 2 | U135: 2.9999 | V135: 3 | W135: 3.9999 | X135: 4 | Y135: 10000 | Z135: 1 | AA135: YES | BB135: 4 | BC135: 0.50 | BD135: 2 | BE135: 1.00
C136: 129 | D136: No. of Parents- Teacher meetings | E136: 4 | G136: 4 | H136: 4 | I136: 0.50 | J136: 2.00 | O136: 4 | P136: 0 | Q136: 0.9999 | R136: 1 | S136: 1.9999 | T136: 2 | U136: 2.9999 | V136: 3 | W136: 3.9999 | X136: 4 | Y136: 10000 | Z136: =IF(AA136="YES",1,0)*IF(AW136="ERROR INPUT",0,1) -> 1 | AA136: YES | BB136: 4 | BC136: =+I136 -> 0.50 | BD136: =+BB136*BC136 -> 2 | BE136: =IF(J136="",0,+J136) -> 2.00
C137: 130 | D137: No. of Alumni meetings held (last two years) | E137: 0 | G137: 0 | H137: 0 | I137: 0.50 | J137: 0.00 | K137: 0 | P137: 0 | Q137: 0.9999 | R137: 1 | S137: 1.9999 | T137: 2 | U137: 2.9999 | V137: 3 | W137: 3.9999 | X137: 4 | Y137: 10000 | Z137: 0 | BB137: 4 | BC137: 0.50 | BD137: 2 | BE137: 0.00 | BF137: =SUM(BD132:BD137) -> 12.00 | BG137: =SUM(BE132:BE137) -> 4.00

Sheet Result KeyFactorwise
A1: =+Result!B1 -> SHRI SHIV CHARAN MATHUR, GOVERNMENT COLLEGE, MANDALGARH
A2: Assessment Matrix for Annual Auditing Programe
A3: =+Result!B3 -> Session : 2019-20
A4: Crteria | B4: Key Factors Criteria | C4: Maximum Weighted Credits | D4: Actual Weighted Credits | E4: Percentage of Actual with Maximum | G4: Delete Input Values Key Factor
A5: A. Teaching and Learning | B5: A-1 Student Strength | C5: =IF(D5=0,"",Input!BF8) ->  | D5: =Input!BG8 -> 0.00 | E5: =IF(D5=0,"",ROUND(D5/C5*100,2)) -> 
B6: A-2 Inclusivity | C6: =IF(D6=0,"",Input!BF19) -> 36.00 | D6: =Input!BG19 -> 25.50 | E6: 70.830
B7: A-3 Choices | C7: =IF(D7=0,"",Input!BF25) -> 22.00 | D7: =Input!BG25 -> 10.50 | E7: 47.730
B8: A-4 Faculty-Portrayal | C8: =IF(D8=0,"",Input!BF34) -> 36.00 | D8: =Input!BG34 -> 13.50 | E8: 37.500
B9: A-5 Student performance and learning outcomes | C9: =IF(D9=0,"",Input!BF37) ->  | D9: =Input!BG37 -> 0.00
A10: B. Research and Professional Practices | B10: B-1 Research Output | C10: =IF(D10=0,"",Input!BF47) ->  | D10: =Input!BG47 -> 0.00
B11: B-2 Academic Enrichment | C11: =IF(D11=0,"",Input!BF50) ->  | D11: =Input!BG50 -> 0.00
A12: C. Infrastructure and Learning Resources | B12: C-1 Physical Assets | C12: =IF(D12=0,"",Input!BF71) -> 50.00 | D12: =Input!BG71 -> 39.50 | E12: 79.000 | G12: C
B13: C-2 Office Setup | C13: =IF(D13=0,"",Input!BF74) -> 10.00 | D13: =Input!BG74 -> 4.00 | E13: 40.000
A14: D. Student Support and participation | B14: D-1 Learning Support | C14: =IF(D14=0,"",Input!BF84) -> 14.00 | D14: =Input!BG84 -> 4.00 | E14: 28.570 | G14: D
B15: D-2 Counseling and Mentoring | C15: =IF(D15=0,"",Input!BF107) -> 26.00 | D15: =Input!BG107 -> 13.25 | E15: 50.960
A16: E. Financial Resources and Utilisation | B16: E-1 Financial Management | C16: =IF(D16=0,"",Input!BF111) -> 32.00 | D16: =Input!BG111 -> 10.00 | E16: 31.250
B17: E-2 Self Financing Efforts | C17: =IF(D17=0,"",Input!BF112) ->  | D17: =Input!BG112 -> 0.00
A18: F. Commitment, Leadership and Management | B18: F-1 Societal Footprint | C18: =IF(D18=0,"",Input!BF115) -> 6.00 | D18: =Input!BG115 -> 1.00 | E18: 16.670
B19: F-2 Innovatin, Values and Best practices | C19: =IF(D19=0,"",Input!BF123) -> 18.00 | D19: =Input!BG123 -> 9.00 | E19: 50.000
B20: F-3 Effective Implementatin of Govt. Schemes | C20: =IF(D20=0,"",Input!BF131) -> 24.00 | D20: =Input!BG131 -> 15.00 | E20: 62.500
B21: F-4 Strengthening the bond | C21: =IF(D21=0,"",Input!BF137) -> 12.00 | D21: =Input!BG137 -> 4.00 | E21: 33.330
B22: TOTAL | C22: =IF(SUM(C5:C21)=0,"",SUM(C5:C21)) -> 286.00 | D22: =IF(SUM(D5:D21)=0,"",SUM(D5:D21)) -> 149.25
B23: Average | C23: =IF(C22="","",ROUND(C22/4,2)) -> 71.50 | D23: =IF(D22="","",ROUND(D22/4,4)) -> 37.31

Sheet Result
B1: =+'Result NAAC'!B1:F1 -> SHRI SHIV CHARAN MATHUR, GOVERNMENT COLLEGE, MANDALGARH
B2: Assessment Matrix for Annual Auditing Programe
B3: Session : 2019-20
B4: Performance Criteria | C4: Maximum Weighted Credits | D4: Actual Weighted Credits | E4: Percentage of Actual with Maximum | I4: Delete Input Values Performance Criteria
B5: =+Input!A7 -> A. Teaching and Learning | C5: =IF(D5="","",35*4) -> 140.00 | D5: =IF(SUM(Input!J7:J37)=0,"",SUM(Input!J7:J37)) -> 49.50 | E5: =IF(D5="","",ROUND(D5/C5*100,2)) -> 35.360 | I5: A
B6: =+Input!A38 -> B. Research and Professional Practices | C6: =IF(D6="","",15*4) ->  | D6: =IF(SUM(Input!J38:J50)=0,"",SUM(Input!J38:J50)) ->  | I6: B
B7: =+Input!A51 -> C. Infrastructure and Learning Resources | C7: =IF(D7="","",15*4) -> 60.00 | D7: =IF(SUM(Input!J51:J74)=0,"",SUM(Input!J51:J74)) -> 43.50 | E7: 72.500 | I7: C
B8: =+Input!A75 -> D. Student Support and participation | C8: =IF(D8="","",10*4) -> 40.00 | D8: =IF(SUM(Input!J75:J107)=0,"",SUM(Input!J75:J107)) -> 17.25 | E8: 43.130 | I8: D
B9: =+Input!A108 -> E. Financial Resources and Utilisation | C9: =IF(D9="","",10*4) -> 40.00 | D9: =IF(SUM(Input!J108:J112)=0,"",SUM(Input!J108:J112)) -> 10.00 | E9: 25.000 | I9: E
B10: =+Input!A113 -> F. Commitment, Leadership and Management | C10: =IF(D10="","",15*4) -> 60.00 | D10: =IF(SUM(Input!J113:J137)=0,"",SUM(Input!J113:J137)) -> 29.00 | E10: 48.330 | I10: F
B11: TOTAL | C11: =IF(SUM(C5:C10)=0,"",SUM(C5:C10)) -> 340.00 | D11: =IF(SUM(D5:D10)=0,"",SUM(D5:D10)) -> 149.25
B12: Average | C12: =IF(C11="","",ROUND(C11/4,2)) -> 85.00 | D12: =IF(D11="","",ROUND(D11/4,4)) -> 37.31
